Cogmind - Beta 16 X2 @@@ ROGUE MODE // 2025.10.21 @ 15:30:09 Player: Spoodle Result: Self-destructed Performance ------------- Evolutions (9) 4500 Regions Visited (33) 6600 Robots Destroyed (503) 2515 Value Destroyed (26848) 26848 Prototype IDs (91) 1820 Alien Tech Used (0) 0 Bonus (27296) 27296 TOTAL SCORE: 69579 Bonus ------- Triggered High Security 1000 Triggered Max Security 1000 High Alert Combat Kills 8941 Follower Combat Kills 2632 Destroyed Unchained 1000 Entered Garrisons 400 Entered DSFs 500 Network Hubs Disabled 200 Aligned with FarCom 300 Met Imprinter 300 Destroyed Z-Imprinter 1000 Triggered Deep Caves Wall 500 Exposed GOLEM Chamber 500 Acquired ECA 300 Met Warlord at Base 500 MAIN.C Attacked Warlord 500 Warlord Defense Kills 2470 Built Enhanced Grunts 300 A7 Reached Mainframe 300 Met R17 at Cetus 500 Met R17 at Research 2000 Met Warlord at Research 2000 Invited to Help at Command 2000 Scanned by Researcher 500 Friendly Fire -2347 Cogmind --------- Core Integrity 592/1600 Matter 88/300 Energy 97/100 System Corruption 14% Temperature Cool (0) Movement Walking (110) Location -1/Access Parts ------- > --- POWER (3) -------- (None) > --- PROPULSION (6) --- Medium Treads Enhanced Biometal Leg High-density Centrium Leg > --- UTILITY (13) ----- Assembled Nanovents Structural Scanner Assembled Combat Suite Graphene Brace Hacking Drone Bay (1/1) > --- WEAPON (3) ------- (None) > --- INVENTORY (5) ---- Huge Storage Unit Experimental Energy Well (600) Zionite Biocell (600) Advanced Matter Compressor (400) Peak State ------------ > --- POWER ------------ Quantum Reactor Quantum Reactor Quantum Reactor > --- PROPULSION ------- Improved Thunder Leg Enhanced Biometal Leg Enhanced Biometal Leg Assembled Alloy Leg Assembled Alloy Leg High-density Centrium Leg > --- UTILITY ---------- Experimental Heat Sink Assembled Nanovents Huge Storage Unit Assembled Biocell Array Assembled Combat Suite Experimental Weapon Cycler Advanced Phase Shifter Centrium Medium Armor Plating Centrium Medium Armor Plating Assembled Alloy Armor Advanced Force Field GOLEM Unit > --- WEAPON ----------- Assembled Focal Cannon Assembled Focal Cannon DW-4LL's Megashotty > --- INVENTORY -------- Vortex Chain Reactor DW-4LL's Griptreads Enhanced Biometal Leg Enhanced Biometal Leg Enhanced Biometal Leg Advanced Cooling System High-capacity Storage Unit Experimental Energy Well Zionite Biocell Advanced Matter Compressor Structural Scanner Advanced Cloaking Device Improved Utility Shielding Graphene Brace Thermal Barrier Advanced Force Field Drone Bay Hacking Drone Bay Long-range Proton Cannon Enhanced Nova Cannon Long-range Missile Launcher Mini Smartbomb Launcher Field Lobotomy Kit [Rating: 231] Favorites ----------- Power Quantum Reactor Engine Reinforced Deuterium Engine Power Core Light Nuclear Core Reactor Quantum Reactor Propulsion Assembled Alloy Leg Treads Light Treads Leg Assembled Alloy Leg Wheel Armored Huge Wheel Hover Unit Aerolev Unit Utility Assembled Nanovents Device Assembled Nanovents Storage Huge Storage Unit Processor Core Analyzer Hackware Hacking Suite Protection Assembled Alloy Armor Weapon Assembled Focal Cannon Energy Gun Heavy Particle Gun Energy Cannon Assembled Focal Cannon Ballistic Gun Enhanced Autogun Ballistic Cannon Light Cannon Launcher Long-range Missile Launcher Special Weapon Plasma Cutter Impact Weapon Heavy Flail Slashing Weapon Katana Build | -11 -10 -10 -10 -9 -8 -8 -8 -7 -7 -6 -6 -6 -6 -6 -5 -5 -5 -5 -5 -5 -5 -5 -4 -4 -4 -4 -3 -3 -3 -2 -1 -1 -1 ------- Run | Yrd Mat Min Exi Min Mat Gar Mat Fac DSF Fac Low Low Zio Dee Pro Fac Was Fac Ext Cet Arc Hub Fac Upp Upp War Pro Res Qua Res Acc Gar Acc Slots Evolved 18 | . . . . . 4 . . 2 . 2 . . . . . 2 . . . . . . 2 . . . . 2 . 2 2 . . Power 2 | . . . . . . . . . . . . . . . . 1 . . . . . . . . . . . 1 . . . . . Propulsion 4 | . . . . . 1 . . 1 . . . . . . . . . . . . . . . . . . . 1 . 1 . . . Utility 11 | . . . . . 3 . . 1 . 2 . . . . . 1 . . . . . . 2 . . . . . . 1 1 . . Weapon 1 | . . . . . . . . . . . . . . . . . . . . . . . . . . . . . . . 1 . . Parts Attached 236 | 7 16 4 1 . 30 12 9 . 11 16 6 . 7 29 . 3 3 . 3 8 1 9 3 1 1 10 . 10 . 8 18 5 5 Power 27 | 1 3 . 1 . 4 1 1 . 1 . . . . 2 . 1 1 . . . 1 1 1 . . . . 2 . 2 2 1 1 Engine 8 | 1 1 . 1 . 1 1 1 . 1 . . . . 1 . . . . . . . . . . . . . . . . . . . Core 5 | . 2 . . . 3 . . . . . . . . . . . . . . . . . . . . . . . . . . . . Reactor 14 | . . . . . . . . . . . . . . 1 . 1 1 . . . 1 1 1 . . . . 2 . 2 2 1 1 Propulsion 65 | 2 4 2 . . 9 5 5 . 6 . 2 . . 7 . . . . 3 5 . 1 . . 1 . . 4 . 1 3 3 2 Treads 32 | . . 2 . . 4 5 5 . 5 . 2 . . 1 . . . . . 3 . . . . 1 . . . . . 1 1 2 Leg 29 | 2 4 . . . 4 . . . . . . . . 4 . . . . 3 2 . 1 . . . . . 4 . 1 2 2 . Wheel 2 | . . . . . . . . . 1 . . . . 1 . . . . . . . . . . . . . . . . . . . Hover 2 | . . . . . 1 . . . . . . . . 1 . . . . . . . . . . . . . . . . . . . Flight . | . . . . . . . . . . . . . . . . . . . . . . . . . . . . . . . . . . Utility 96 | 2 4 . . . 9 5 2 . 1 12 3 . 3 14 . 2 1 . . 1 . 7 1 1 . 8 . 3 . 5 11 . 1 Device 52 | 1 2 . . . 3 3 . . . 5 3 . 2 6 . 1 1 . . . . 5 . 1 . 4 . 1 . 5 8 . 1 Storage 9 | 1 2 . . . 1 . . . . 1 . . . 1 . . . . . . . . . . . 1 . 1 . . 1 . . Processor 9 | . . . . . . . 1 . . 2 . . . . . 1 . . . . . 1 . . . 2 . 1 . . 1 . . Hackware 4 | . . . . . 1 . . . . 2 . . . . . . . . . . . . . . . 1 . . . . . . . Protection 22 | . . . . . 4 2 1 . 1 2 . . 1 7 . . . . . 1 . 1 1 . . . . . . . 1 . . Artifact . | . . . . . . . . . . . . . . . . . . . . . . . . . . . . . . . . . . Weapon 48 | 2 5 2 . . 8 1 1 . 3 4 1 . 4 6 . . 1 . . 2 . . 1 . . 2 . 1 . . 2 1 1 Energy Gun 15 | 1 3 . . . 5 . . . 1 . . . . 4 . . . . . 1 . . . . . . . . . . . . . Energy Cannon 8 | . . . . . 1 . . . 1 1 . . . 1 . . 1 . . . . . 1 . . . . . . . 1 . 1 Ballistic Gun 6 | 1 . . . . 1 . 1 . . . . . . . . . . . . 1 . . . . . 1 . . . . 1 . . Ballistic Cannon 9 | . 2 2 . . . . . . . 2 1 . 2 . . . . . . . . . . . . . . . . . . . . Launcher 4 | . . . . . . 1 . . 1 . . . . 1 . . . . . . . . . . . . . 1 . . . . . Special Weapon 4 | . . . . . 1 . . . . . . . 1 . . . . . . . . . . . . 1 . . . . . 1 . Impact Weapon 1 | . . . . . . . . . . . . . 1 . . . . . . . . . . . . . . . . . . . . Slashing Weapon 1 | . . . . . . . . . . 1 . . . . . . . . . . . . . . . . . . . . . . . Piercing Weapon . | . . . . . . . . . . . . . . . . . . . . . . . . . . . . . . . . . . Special Melee Weapon . | . . . . . . . . . . . . . . . . . . . . . . . . . . . . . . . . . . Unidentified Prototypes 46 | . . . . . 3 . 1 . . . . . 1 12 . . 1 . . 4 . 4 . . . 7 . 3 . 2 7 1 . Parts Lost 103 | . 1 3 . . 17 5 1 . 3 . 1 . . 13 . 1 . 1 3 . . 1 2 1 1 1 1 . . 1 10 6 30 Power 14 | . 1 1 . . 3 1 . . . . . . . . . . . . . . . 1 . . 1 . . . . . 1 1 4 Propulsion 18 | . . . . . 6 1 . . . . . . . 3 . . . . 1 . . . . . . . . . . . . 1 6 Utility 50 | . . . . . 5 3 1 . 2 . 1 . . 9 . 1 . . 2 . . . 2 1 . 1 . . . 1 6 3 12 Weapon 21 | . . 2 . . 3 . . . 1 . . . . 1 . . . 1 . . . . . . . . 1 . . . 3 1 8 Highest Loss Streak 17 | . 1 3 . . 8 3 1 . 3 . 1 . . 3 . 1 . 1 1 . . 1 2 1 1 1 1 . . 1 5 3 17 To Critical Strikes . | . . . . . . . . . . . . . . . . . . . . . . . . . . . . . . . . . . Average Backups 20 | 4 12 13 11 12 15 19 17 19 19 22 22 22 22 21 22 23 22 21 20 20 19 19 22 22 22 21 22 17 17 18 21 19 15 Power 1 | . . 1 . . . . 1 1 1 1 1 1 1 1 2 1 1 1 1 1 . . 1 1 . . 1 1 1 1 1 1 . Propulsion 4 | 2 3 4 4 4 3 6 6 7 6 4 4 4 4 3 4 4 3 3 2 3 4 4 5 5 5 5 7 2 2 2 3 3 3 Utility 8 | . 3 4 4 4 4 2 2 1 2 7 8 7 7 8 10 11 11 11 11 10 10 9 10 11 11 10 10 9 10 9 11 10 7 Weapon 4 | 1 4 4 3 3 5 8 6 7 7 7 7 8 8 6 4 4 3 3 3 3 3 2 3 3 4 3 3 3 3 3 3 4 2 Tool/Special . | . . . . . . . . . . . . . . . . . . . . . . . . . . . . . . . . . . Unused Backups 43 | . 2 1 . . 4 . 6 . 7 8 1 . . 4 . . 4 . 1 1 . . . 1 . 1 . . . . 2 . . Power 7 | . 1 . . . 2 . . . 1 . . . . 3 . . . . . . . . . . . . . . . . . . . Propulsion 15 | . . 1 . . 1 . 5 . 4 2 . . . . . . 2 . . . . . . . . . . . . . . . . Utility 13 | . 1 . . . . . . . 1 2 1 . . 1 . . 2 . . 1 . . . 1 . 1 . . . . 2 . . Weapon 7 | . . . . . 1 . 1 . 1 4 . . . . . . . . . . . . . . . . . . . . . . . Tool/Special 1 | . . . . . . . . . . . . . . . . . . . 1 . . . . . . . . . . . . . . Average Slot Usage (%) 89 | . 99 96 100 100 93 94 99 99 93 88 85 86 83 85 86 87 87 88 91 91 82 76 83 83 83 82 83 89 95 94 94 92 75 Engine 2 | . 5 . 14 14 2 8 9 7 6 6 6 6 6 5 6 5 2 . . . . . . . . . . . . . . . . Reactor 5 | . . . . . . . . . . . . . . . . 5 7 11 11 11 11 10 10 10 9 10 10 9 14 13 11 8 6 Treads 8 | . . 21 28 28 16 26 27 30 28 13 13 13 13 9 . . . . . 2 11 10 10 10 9 10 10 . . . . . 3 Leg 9 | . 28 6 . . 9 . . . . . . . . 3 13 11 11 11 19 18 . . . . . . . 22 23 25 23 23 16 Wheel 1 | . . . . . . . . . . 6 6 6 6 5 6 5 5 5 1 . . . . . . . . . . . . . . Device 23 | . 14 14 14 14 15 18 18 22 17 14 18 20 18 19 26 23 22 23 23 18 22 15 31 28 29 30 31 28 28 29 30 33 29 Storage 9 | . 14 14 14 14 9 9 9 7 7 6 6 6 6 7 13 11 11 11 11 11 11 11 10 10 10 10 10 9 9 8 8 8 6 Processor 3 | . . . . . . . 2 7 7 12 13 13 13 7 6 4 5 5 5 5 5 3 . . . . . . . . . . . Hackware 1 | . . . . . 6 9 5 . . 6 . . . . . . . . . . . . . . . . . . . . . . . Protection 6 | . . . . . 8 4 9 7 6 6 6 6 5 10 . 4 5 5 5 9 5 9 8 11 11 10 9 9 9 8 8 6 4 Energy Gun 2 | . 7 . . . 9 17 10 7 8 1 . . . 4 . . . . . . . . . . . 2 . . . . . . . Energy Cannon 7 | . . . . . 1 . . . . 5 5 6 4 4 13 11 11 11 10 10 11 10 9 9 10 3 9 8 6 7 11 11 8 Ballistic Cannon 2 | . 16 28 28 28 6 . . . . 4 6 6 3 1 . . . . . . . . . . . . . . . . . . . Peak Build Rating 231 | 7 11 11 9 9 35 31 31 35 46 66 69 65 66 114 113 141 138 136 143 149 150 151 176 175 175 170 173 183 181 203 231 231 226 Average Rating 121 | 4 9 9 8 9 24 28 29 34 36 61 66 64 61 83 112 131 135 134 136 140 148 147 171 174 172 163 171 175 179 199 221 226 187 On Entrance 102 | . 7 11 8 9 9 29 29 30 35 46 65 64 64 65 113 113 135 136 132 138 149 148 121 175 175 171 169 167 178 179 201 201 226 Avg Prop Armor Cover (%) 9 | . . . . . . . . . 14 11 8 8 8 10 12 9 10 10 4 3 . . . . . . . . . . . . 7 Naked Turns . | . . . . . . . . . . . . . . . . . . . . . . . . . . . . . . . . . . Heaviest Build 234 | 12 32 32 30 30 70 60 63 64 71 134 135 136 136 136 136 162 152 158 158 159 159 194 171 171 173 174 166 144 146 163 234 222 212 Greatest Support 202 | 20 20 40 40 40 60 60 60 80 82 28 28 28 28 60 28 28 28 60 85 160 160 160 180 180 180 175 175 150 150 180 182 202 192 Greatest Overweight (x) 5 | . 1 1 . . 2 . 1 . 2 4 4 4 4 4 4 5 5 5 2 2 . 2 1 . . 1 1 . . . 1 1 3 Average Overweight (x) 1 | . . . . . . . . . . 3 4 4 3 3 4 5 5 4 1 . . . . . . . . . . . . . 1 Largest Inventory Capacity 25 | 8 15 15 15 15 20 20 20 20 20 25 25 25 25 25 25 25 25 25 25 25 25 25 25 25 25 25 25 25 20 20 25 25 25 Average Capacity 23 | 7 13 15 15 15 19 20 20 20 20 24 25 25 25 25 25 25 25 25 25 25 25 25 25 25 25 25 25 20 20 20 24 25 24 Most Carried 25 | 7 15 15 15 15 20 20 20 20 20 25 25 25 25 25 24 25 25 25 25 25 25 25 25 25 25 25 25 25 20 20 25 25 24 Average Carried 22 | 4 12 14 14 15 17 19 17 19 19 24 24 24 24 22 23 24 24 24 24 24 24 23 24 24 24 24 24 19 19 19 23 23 17 Final Capacity 25 | 8 15 15 15 15 20 20 20 20 20 25 25 25 25 25 25 25 25 25 25 25 25 25 25 25 25 25 25 20 20 20 25 25 25 Final Carried 25 | 7 15 15 15 15 20 20 20 20 20 25 25 24 25 24 24 25 25 25 25 25 25 24 25 25 24 25 25 20 19 20 25 24 23 Class Distribution -------------------- 31% | Scavenger-Golem 26% | Scavenger-Mutant 12% | Mutant 11% | Golem 6% | Scavenger-Tank 6% | Commander-Golem Dominant Class ---------------- Scavenger-Mutant | -10/Materials Mutant | -10/Mines Mutant | -10/Exiles Mutant | -9/Mines Scavenger-Skirmisher | -8/Materials Scavenger-Mutant | -8/Garrison Scavenger-Mutant | -8/Materials Scavenger-Skirmisher | -7/Factory Scavenger-Mutant | -7/DSF Mutant | -6/Factory Mutant | -6/Lower Caves Mutant | -6/Lower Caves Scavenger-Mutant | -6/Zion Scavenger-Mutant | -6/Deep Caves Golem | -5/Proximity Caves Golem | -5/Factory Golem | -5/Waste Golem | -5/Factory Golem | -5/Extension Commander-Golem | -5/Cetus Commander-Golem | -5/Archives Scavenger-Golem | -5/Hub_04(d) Scavenger-Golem | -4/Factory Scavenger-Golem | -4/Upper Caves Scavenger-Golem | -4/Upper Caves Scavenger-Golem | -4/Warlord Scavenger-Golem | -3/Proximity Caves Scavenger-Golem | -3/Research Scavenger-Golem | -3/Quarantine Scavenger-Golem | -2/Research Scavenger-Tank | -1/Access Scavenger-Golem | -1/Garrison Scavenger-Mutant | -1/Access Resources | -11 -10 -10 -10 -9 -8 -8 -8 -7 -7 -6 -6 -6 -6 -6 -5 -5 -5 -5 -5 -5 -5 -5 -4 -4 -4 -4 -3 -3 -3 -2 -1 -1 -1 ----------- Run | Yrd Mat Min Exi Min Mat Gar Mat Fac DSF Fac Low Low Zio Dee Pro Fac Was Fac Ext Cet Arc Hub Fac Upp Upp War Pro Res Qua Res Acc Gar Acc Matter Collected 10164 | 285 425 200 . 47 691 237 232 . 248 410 469 172 137 812 46 35 60 30 120 120 30 302 372 117 126 499 145 170 . 250 2040 843 494 Remotely . | . . . . . . . . . . . . . . . . . . . . . . . . . . . . . . . . . . Salvage Created 22581 | 121 554 113 . . 1093 765 633 . 399 1040 426 190 . 802 224 61 103 496 1316 339 . 1100 1321 284 315 729 333 513 117 348 5133 2186 1527 Parts 1014 | 9 32 14 . . 52 37 31 . 26 73 12 9 . 27 7 7 7 16 51 17 . 47 70 13 11 28 17 15 11 13 217 82 63 Haulers Intercepted 11 | . 1 . . . 4 . 3 . . . . . . . . . . . . . . . 1 . . . . 2 . . . . . Recyclers Shooed 16 | . 1 . . . . . 1 . . 7 . . . . . . . 1 . . . 1 1 . . . . . . . 4 . . Parts Field Recycled . | . . . . . . . . . . . . . . . . . . . . . . . . . . . . . . . . . . Retrieved Matter . | . . . . . . . . . . . . . . . . . . . . . . . . . . . . . . . . . . Parts Self-Destructed 68 | . . . . . . . . . . . 14 12 1 . 7 . . . . . . . . 11 11 . 12 . . . . . . Prevented . | . . . . . . . . . . . . . . . . . . . . . . . . . . . . . . . . . . Parts Restored . | . . . . . . . . . . . . . . . . . . . . . . . . . . . . . . . . . . Kills | -11 -10 -10 -10 -9 -8 -8 -8 -7 -7 -6 -6 -6 -6 -6 -5 -5 -5 -5 -5 -5 -5 -5 -4 -4 -4 -4 -3 -3 -3 -2 -1 -1 -1 ------- Run | Yrd Mat Min Exi Min Mat Gar Mat Fac DSF Fac Low Low Zio Dee Pro Fac Was Fac Ext Cet Arc Hub Fac Upp Upp War Pro Res Qua Res Acc Gar Acc Combat Hostiles Destroyed 441 | . 16 8 . . 20 20 7 . 9 16 13 5 . 52 6 1 . 5 16 4 . 17 24 7 8 24 9 2 5 6 77 38 26 Guns 53 | . 9 . . . 14 13 7 . 5 . . . . 2 . . . . . . . . . . . . . . . . 1 . 2 Cannons 211 | . 7 8 . . 3 . . . . 13 6 3 . 10 6 1 . 5 15 4 . 11 14 3 4 3 6 2 1 3 43 24 16 AOE 162 | . . . . . 2 7 . . 3 3 7 2 . 38 . . . . . . . 6 9 4 4 21 3 . 4 3 32 11 3 Classes Destroyed 31 | 2 6 . . . 3 1 1 . 2 1 1 . . 4 1 . 1 . 1 . . 1 . . . 2 . . . 1 1 . 2 Worker 24 | . 1 . . . 2 . . . . 5 . . . . . . . . 1 . . 6 1 . . . . . . . 8 . . Builder 19 | . . . . . . . 1 . . 3 . . . . . . . . . . . . . . . . . 1 . . 10 . 4 Tunneler 9 | 3 . . . . . . . . . 3 . . . . . . . . 1 . . . . . . . . . . 1 . . 1 Hauler 11 | . 1 . . . 4 . 3 . . . . . . . . . . . . . . . 1 . . . . 2 . . . . . Recycler 13 | 1 . 1 . . . . 1 . . 2 . . . . . . . 1 1 . . 1 . . . . . 1 . . 4 . . Carrier 1 | . . . . . . . . . . . . . . . . . . . . . . . . . . . . . . . 1 . . Mechanic 4 | . . . . . . . . . . . . . . . . . . . . . . . . . . . . . . 1 2 . 1 Operator 4 | . 1 . . . . . . . . 1 . . . . . . . . 1 . . . . . . . . . . . 1 . . Drone 4 | . . . . . . . . . . . . . . . 2 . . . . . . . . . . . 2 . . . . . . Watcher 13 | . 1 . . . 1 . . . . . . . . . . . . 1 1 1 . 1 4 . . . . . . 1 2 . . Swarmer 74 | . 3 6 . . 3 4 . . . 3 . . . . 1 . . . . . . . 4 4 5 5 3 . 5 3 16 9 . Cutter 7 | . . . . . . . . . 2 . . . . . . . . . . . . . . . . . . . . . 3 2 . Saboteur 6 | . . . . . . . . . . . . . . . . . . . . . . . . . . 5 . . . . 1 . . Grunt 125 | . 13 2 . . 11 8 3 . 2 5 3 3 . . 2 . . 1 6 . . 6 3 3 . 12 . 2 . 1 20 9 10 Brawler 14 | . . . . . . 2 . . 1 . 2 . . . . . . . . . . 1 . . 2 . . . . . 3 . 3 Duelist 19 | . . . . . . . . . . . 4 1 . . 1 . . . . . . 1 . . . . . . . 1 2 2 7 Protector 4 | . . . . . . . . . . . . . . . . . . . . . . 2 . . . . . . . . . . 2 Sentry 32 | . . . . . 3 6 4 . . 1 1 . . . . . . . 4 . . 1 2 . 1 . 1 . . . 3 5 . Specialist 4 | . . . . . . . . . 2 . . . . . . . . . . . . 2 . . . . . . . . . . . Hunter 33 | . . . . . 2 . . . 1 2 2 . . . . . . 2 2 . . . 6 . . 1 . . . . 11 4 . Programmer 46 | . . . . . . . . . . 5 1 1 . . . 1 . 2 1 . . 2 9 . . . 2 . . . 15 5 2 Heavy 4 | . . . . . 1 . . . 1 . . . . . . . . . . . . . . . . . . . . . 2 . . Behemoth 2 | . . . . . . . . . . . . . . . . . . . 1 . . . . . . . . . . . . 1 . Cetus Guard 4 | . . . . . . . . . . . . . . . . . . . . 4 . . . . . . . . . . . . . Enhanced Grunt 1 | . . . . . . . . . . . . . . 1 . . . . . . . . . . . . . . . . . . . Lightning 2 | . . . . . . . . . . . . . . . . . . . . . . 2 . . . . . . . . . . . Investigator 1 | . . . . . . . . . . . . . . . . . . . . . . . . . . . . . . . . . 1 Striker 3 | . . . . . . . . . . . . . . . . . . . . . . . . . . 1 . . . 1 . 1 . Executioner 2 | . . . . . . . . . . . . . . . . . . . . . . . . . . . . . . . . . 2 Z-Light 6 | . . . . . . . . . . . . . . 6 . . . . . . . . . . . . . . . . . . . Decomposer 1 | . . . . . . . . . . . 1 . . . . . . . . . . . . . . . . . . . . . . Assembler 2 | . . . . . . . . . . . . . . 2 . . . . . . . . . . . . . . . . . . . Assembled 44 | . . . . . . . . . . . . . . 44 . . . . . . . . . . . . . . . . . . . Golem 2 | . . . . . . . . . . . . . . 2 . . . . . . . . . . . . . . . . . . . Wasp 1 | . . . . . . . . . . . . . . . . . 1 . . . . . . . . . . . . . . . . Thug 1 | . . . . . . . . . . . . . . . . . . . 1 . . . . . . . . . . . . . . Savage 1 | . . . . . . . . . . . . . . . . . . . 1 . . . . . . . . . . . . . . Butcher 1 | . . . . . . . . . . . . . . . . . . . . . . . . . . . 1 . . . . . . Martyr 2 | . . . . . . . . . . . . . . . . . 1 1 . . . . . . . . . . . . . . . Infiltrator 1 | . . . . . . . . . . . . . . . . . . . . . . 1 . . . . . . . . . . . Best Kill Streak 39 | 2 4 3 . . 6 7 5 . 3 9 9 4 . 39 3 1 . 3 4 3 . 10 9 4 5 12 5 2 5 4 25 11 22 Combat Bots Only 37 | . 4 3 . . 5 7 3 . 3 5 9 4 . 37 3 1 . 2 4 3 . 9 9 4 5 12 5 1 5 3 18 11 16 Max Kills in Single Turn 30 | 1 1 1 . . 2 2 1 . 1 4 2 2 . 30 1 1 1 1 2 1 . 3 4 2 4 6 2 1 4 4 5 3 3 Gunslinging . | . . . . . . . . . . . . . . . . . . . . . . . . . . . . . . . . . . Exploded 30 | . . . . . 1 2 . . 1 2 2 2 . 30 . . . . . . . 2 4 2 4 6 2 . 4 3 4 3 1 Melee . | . . . . . . . . . . . . . . . . . . . . . . . . . . . . . . . . . . Uniques/NPCs Destroyed 2 | . . . . . . . . . . . . . . 1 . . . . . . . . . . . . . . . . 1 . . Z-Imprinter (-6/Deep Caves) DW-4LL (-1/Access) Combat | -11 -10 -10 -10 -9 -8 -8 -8 -7 -7 -6 -6 -6 -6 -6 -5 -5 -5 -5 -5 -5 -5 -5 -4 -4 -4 -4 -3 -3 -3 -2 -1 -1 -1 -------- Run | Yrd Mat Min Exi Min Mat Gar Mat Fac DSF Fac Low Low Zio Dee Pro Fac Was Fac Ext Cet Arc Hub Fac Upp Upp War Pro Res Qua Res Acc Gar Acc Hostile Shots Fired 2733 | . 84 51 . . 189 114 50 . 35 74 47 29 . 117 16 4 . 50 78 13 1 91 170 28 33 34 38 25 29 7 534 268 524 Missed 853 | . 16 14 . . 50 33 17 . 12 26 11 9 . 20 3 1 . 6 24 7 1 13 47 10 9 17 13 4 9 2 216 101 162 Hits 1880 | . 68 37 . . 139 81 33 . 23 48 36 20 . 97 13 3 . 44 54 6 . 78 123 18 24 17 25 21 20 5 318 167 362 Melee 47 | . . . . . . . . . 3 . 1 2 . 7 1 . . . . . . 3 . . 2 . 1 . . . 5 1 21 Projectile 1833 | . 68 37 . . 139 81 33 . 20 48 35 18 . 90 12 3 . 44 54 6 . 75 123 18 22 17 24 21 20 5 313 166 341 AOE 6 | . . . . . . . . . 1 . . . . . . . . 1 . . . 2 . . . . . . . 1 . . 1 Critical Strikes 101 | . 1 . . . 5 5 3 . 3 . 5 2 . . 2 . . 7 4 . . 9 4 1 2 3 2 1 . 2 16 8 16 Actively Blocked 44 | . . . . . 1 . . . . . . . . . 2 . . 7 4 . . 1 . . . . . . . . 6 7 16 Part Disruptions 3 | . . . . . . . . . . 1 . . . . . . . . . . . 1 . . . . 1 . . . . . . Damage Taken 32131 | . 779 413 . . 2503 1161 499 . 677 566 513 277 . 2636 186 61 17 1172 726 204 . 1740 1695 265 493 461 375 309 349 221 4629 2152 7052 Core 2932 | . 169 58 . . 318 138 59 . 135 26 . 27 . 197 . . . 361 59 22 . 45 97 . 18 95 47 25 12 16 258 133 617 Absorbed by Shields 6003 | . . . . . . 31 . . . 165 191 99 . 363 72 . . 233 331 33 . 145 571 . . 154 162 74 100 217 1631 835 596 Reduced by Siege Mode 472 | . . . . . . . . . . . . . . . . . . . . . . 39 53 9 12 . 3 . . . 37 57 262 Redirected to Shielding 236 | . . . . . 106 . . . . . . . . 38 . . . . . . . . . . . . . . . . 92 . . Ignored by Resistances 5118 | . . . . . . . . . . . 73 . . 244 . . 3 270 260 56 . 504 465 94 103 126 110 83 94 41 1378 700 514 Regen/Repaired (Parts) 1220 | . . . . . . . . . . . . . . . . . 14 . . . . . 458 . . 363 . . . 385 . . . Core Remaining (%) 65 | 100 . . . 9 . . 6 . 80 . . . . . 70 . . . . . . 51 . . . . 77 . 97 98 . . . Volleys Fired 1324 | 5 69 28 . . 106 70 36 . 20 72 34 16 1 57 12 9 10 22 43 10 1 60 117 12 9 40 35 34 16 29 186 92 73 Largest 3 | 2 2 2 . . 2 2 2 . 2 2 2 2 1 2 2 2 2 2 2 2 2 2 2 2 2 2 2 2 1 2 3 3 3 Hottest 240 | 60 90 60 . . 130 110 110 . 135 135 125 125 80 165 50 50 50 50 50 50 50 50 115 50 50 50 50 50 43 115 170 170 240 Shots Fired 2299 | 10 122 56 . . 200 123 69 . 32 113 48 28 1 97 23 11 19 42 84 20 2 92 171 20 18 41 50 51 16 41 385 192 122 Gun 518 | 10 82 . . . 108 117 66 . 25 19 . . . 37 . . . . . . . . . . . . . . . . 11 7 36 Cannon 1654 | . 40 56 . . 91 . . . 2 92 43 27 1 47 23 11 19 42 84 20 2 85 164 18 17 23 46 51 15 40 341 176 78 Launcher 119 | . . . . . . 6 . . 5 2 5 1 . 13 . . . . . . . 7 7 2 1 18 4 . 1 1 33 8 5 Special 8 | . . . . . 1 . 3 . . . . . . . . . . . . . . . . . . . . . . . . 1 3 Kinetic 313 | 5 63 56 . . 84 . 17 . 9 38 15 13 . 13 . . . . . . . . . . . . . . . . . . . Thermal 1750 | 5 59 . . . 105 117 52 . 18 73 28 14 1 34 23 11 19 42 84 20 2 85 159 18 17 23 46 51 15 40 341 176 72 Explosive 119 | . . . . . . 6 . . 5 2 5 1 . 13 . . . . . . . 7 7 2 1 18 4 . 1 1 33 8 5 Electromagnetic 59 | . . . . . 11 . . . . . . . . 37 . . . . . . . . 5 . . . . . . . . . 6 Impact 54 | . . . . . . . . . . . . . . . . . . . . . . . . . . . . . . . 11 7 36 Robot Hit Streak 48 | 7 14 10 . . 30 11 12 . 11 13 4 8 . 11 10 11 18 7 13 5 1 31 27 41 43 13 10 8 2 19 30 14 48 Robot Miss Streak 8 | . 4 8 . . 3 2 3 . 1 2 2 1 . 3 1 . 1 2 2 2 1 1 1 . 1 2 3 2 1 2 4 7 3 Penetration Max . | . . . . . . . . . . . . . . . . . . . . . . . . . . . . . . . . . . Secondary Targets 10 | . 1 . . . 2 3 3 . 1 . . . . . . . . . . . . . . . . . . . . . . . . Max Gunslinging Chain 1 | . 1 . . . 1 1 1 . 1 . . . . . . . . . . . . . . . . . . . . . . . . Shots Hit Robots 1396 | 7 77 35 . . 129 62 43 . 22 68 25 19 . 59 15 1 17 23 60 12 1 68 87 14 13 19 16 25 2 23 241 111 102 Core Hits 1044 | 5 28 8 . . 54 34 19 . 17 51 27 8 . 91 6 1 3 9 30 7 1 47 55 9 10 86 12 10 6 11 212 80 107 Critical Kills 4 | . . . . . . . . . . . . . . . . . . . . . . . . . . . . . . . . 3 1 Critical Parts Destroyed . | . . . . . . . . . . . . . . . . . . . . . . . . . . . . . . . . . . Critical Strikes 22 | . . 2 . . 7 5 1 . 1 1 1 . . . . . . . . . . . . . . . . . . . . 3 1 Burn 12 | . . . . . 5 5 1 . 1 . . . . . . . . . . . . . . . . . . . . . . . . Meltdown 4 | . . . . . . . . . . . . . . . . . . . . . . . . . . . . . . . . 3 1 Blast 6 | . . 2 . . 2 . . . . 1 1 . . . . . . . . . . . . . . . . . . . . . . Melee Attacks 11 | . . . . . . . . . . 4 . . . 7 . . . . . . . . . . . . . . . . . . . Impact 7 | . . . . . . . . . . . . . . 7 . . . . . . . . . . . . . . . . . . . Slashing 4 | . . . . . . . . . . 4 . . . . . . . . . . . . . . . . . . . . . . . Piercing . | . . . . . . . . . . . . . . . . . . . . . . . . . . . . . . . . . . Sneak Attacks 1 | . . . . . . . . . . 1 . . . . . . . . . . . . . . . . . . . . . . . Combat Hostiles . | . . . . . . . . . . . . . . . . . . . . . . . . . . . . . . . . . . Follow-up Attacks . | . . . . . . . . . . . . . . . . . . . . . . . . . . . . . . . . . . Damage Inflicted 80759 | 90 1129 607 . . 2471 1779 868 . 906 2572 1837 746 . 4771 708 68 813 1183 3217 615 51 4694 5771 1049 793 6252 1198 1079 466 1372 18981 7695 6978 Guns 9425 | 82 620 . . . 1392 1128 860 . 313 235 . . . 448 . . . . . . . . . . . . . . . . 795 515 3037 Cannons 42471 | . 490 592 . . 876 . . . 50 1531 579 556 . 788 708 68 813 1132 3217 615 51 2935 3840 645 484 773 821 1001 96 1037 10741 5341 2691 Explosions 28161 | . . . . . 167 651 . . 543 739 1258 190 . 3535 . . . . . . . 1560 1814 404 309 5479 377 . 370 315 7394 1839 1217 Melee 67 | . . . . . . . . . . 67 . . . . . . . . . . . . . . . . . . . . . . . Ramming 635 | 8 19 15 . . 36 . 8 . . . . . . . . . . 51 . . . 199 117 . . . . 78 . 20 51 . 33 Kinetic 3887 | 61 703 592 . . 760 . 216 . 135 634 273 272 . 241 . . . . . . . . . . . . . . . . . . . Thermal 42806 | 21 407 . . . 1439 1128 644 . 228 1132 306 284 . 547 708 68 813 1132 3217 615 51 2935 3693 645 484 773 821 1001 96 1037 10741 5341 2499 Explosive 27511 | . . . . . . 651 . . 543 690 1258 190 . 3535 . . . . . . . 1126 1814 404 309 5479 377 . 370 315 7394 1839 1217 Electromagnetic 1506 | . . . . . 236 . . . . 49 . . . 448 . . . . . . . 434 147 . . . . . . . . . 192 Impact 4347 | . . . . . . . . . . . . . . . . . . . . . . . . . . . . . . . 795 515 3037 Slashing 67 | . . . . . . . . . . 67 . . . . . . . . . . . . . . . . . . . . . . . Piercing . | . . . . . . . . . . . . . . . . . . . . . . . . . . . . . . . . . . Highest Corruption 14 | . . . . . 2 2 2 . . 2 3 4 4 7 1 . . . . . . 2 11 11 11 11 1 . . . 6 8 14 Average Corruption 4 | . . . . . 2 2 2 . . 1 2 3 4 2 1 . . . . . . 1 6 11 11 11 1 . . . 2 7 10 Corruption Purged 6 | . . . . . . . . . . . . . . 6 . . . . . . . . . . . . . . . . . . . Corruption Blocked . | . . . . . . . . . . . . . . . . . . . . . . . . . . . . . . . . . . Effects 310 | . . . . . 2 13 6 . . 18 22 12 3 11 4 . . . . . . 6 46 23 14 2 3 . . . 20 83 22 Message Errors 78 | . . . . . . 2 1 . . 4 4 5 . 2 1 . . . . . . 1 13 3 3 1 . . . . 6 26 6 Matter Fused 58 | . . . . . 2 2 2 . . 1 5 2 2 3 1 . . . . . . 1 7 5 5 1 . . . . . 15 4 Heat Flow Errors 35 | . . . . . . 1 1 . . 2 2 . 1 1 1 . . . . . . 1 2 3 3 . 1 . . . 4 9 3 Energy Discharges 41 | . . . . . . 1 2 . . 1 2 2 . 2 1 . . . . . . 1 7 3 . . 1 . . . 4 12 2 Parts Rejected 2 | . . . . . . . . . . . . . . . . . . . . . . . . . . . . . . . 2 . . Parts Fused 4 | . . . . . . . . . . . . 2 . . . . . . . . . . 1 . 1 . . . . . . . . Data Loss (minor) 40 | . . . . . . 4 . . . 6 3 . . 1 . . . . . . . 2 5 5 1 . . . . . 2 10 1 Data Loss (major) 12 | . . . . . . . . . . . 2 . . 1 . . . . . . . . 4 1 . . . . . . . 2 2 Misfires 12 | . . . . . . . . . . 2 1 1 . . . . . . . . . . 3 1 1 . . . . . 1 2 . Alerts 11 | . . . . . . 2 . . . 1 2 . . 1 . . . . . . . . 2 2 . . . . . . . 1 . Misdirections 1 | . . . . . . . . . . . . . . . . . . . . . . . . . . . . . . . . . 1 Weapon Failures 16 | . . . . . . 1 . . . 1 1 . . . . . . . . . . . 2 . . . 1 . . . 1 6 3 Overload Shots . | . . . . . . . . . . . . . . . . . . . . . . . . . . . . . . . . . . Overflow Damage 2746 | . 7 . . . 29 8 . . 36 89 125 37 . 189 63 . . 70 63 . . 231 271 67 . 207 93 73 21 . 854 126 87 Projectiles 1544 | . 7 . . . . . . . . 46 73 37 . 20 63 . . 70 63 . . 149 221 1 . 78 45 58 7 . 430 89 87 Explosions 1120 | . . . . . 29 8 . . 36 43 52 . . 169 . . . . . . . 26 42 66 . 129 48 . 14 . 421 37 . Melee 82 | . . . . . . . . . . . . . . . . . . . . . . 56 8 . . . . 15 . . 3 . . Knockbacks 64 | . 10 5 . . 10 . . . . 3 2 3 . 3 . . . 1 . . . 3 . . . . . 1 . . 6 2 15 Impact 30 | . 1 . . . 1 . . . . . . . . . . . . 1 . . . 3 . . . . . 1 . . 6 2 15 Kinetic 31 | . 8 5 . . 7 . . . . 3 2 3 . 3 . . . . . . . . . . . . . . . . . . . Secondary 3 | . 1 . . . 2 . . . . . . . . . . . . . . . . . . . . . . . . . . . . Self-Inflicted Damage 1461 | . . . . . 90 21 . . 99 17 99 . . 95 . . . . . . . 275 75 . 58 95 35 . 35 . 467 . . Shots 36 | . . . . . 2 1 . . 2 1 3 . . 2 . . . . . . . 6 3 . 1 2 1 . 1 . 11 . . Rammed 21 | . . 3 . . 2 . 2 . . . . . . . . . . . . . . 8 6 . . . . . . . . . . Targets Rammed 48 | 1 7 4 . . 3 . 2 . . . . . . . . . . 6 . . . 11 6 . . . . 2 . 2 3 . 1 Kicked 23 | 1 7 . . . 1 . . . . . . . . . . . . 6 . . . . . . . . . 2 . 2 3 . 1 Crushed 4 | . . 1 . . . . . . . . . . . . . . . . . . . 3 . . . . . . . . . . . Highest Temperature 564 | . 84 1 . . 230 117 100 . 69 244 217 241 165 106 179 . . . . . . 424 176 196 88 . 218 . . 127 212 225 564 Average Temperature 62 | . 24 1 . . 65 46 21 . 25 50 58 81 68 31 101 . . . . . . 102 72 100 58 . 131 . . 90 46 51 113 Received Heat Transfer 5872 | . 411 138 . . 891 519 270 . 45 102 62 73 . 623 74 . . 6 188 18 . 438 100 27 54 55 4 150 30 168 258 143 1025 Effects 7 | . . . . . . . . . . 3 . . . . . . . . . . . 2 . . . . . . . . . . 2 Shutdowns 1 | . . . . . . . . . . . . . . . . . . . . . . . . . . . . . . . . . 1 Energy Bleed 2 | . . . . . . . . . . 1 . . . . . . . . . . . . . . . . . . . . . . 1 Interference 3 | . . . . . . . . . . 2 . . . . . . . . . . . 1 . . . . . . . . . . . Damage (minor) 1 | . . . . . . . . . . . . . . . . . . . . . . 1 . . . . . . . . . . . Siege Activations 17 | . . . . . . . . . . . . . . . . . . . . . . 2 3 1 1 . 3 . . . 2 1 4 Total Turns 344 | . . . . . . . . . . . . . . . . . . . . . . 63 57 16 18 . 26 . . . 55 28 81 Longest Duration 43 | . . . . . . . . . . . . . . . . . . . . . . 38 28 16 18 . 17 . . . 31 28 43 Martial Activations . | . . . . . . . . . . . . . . . . . . . . . . . . . . . . . . . . . . Shielding Activations . | . . . . . . . . . . . . . . . . . . . . . . . . . . . . . . . . . . Robots Disrupted . | . . . . . . . . . . . . . . . . . . . . . . . . . . . . . . . . . . Combat Hostiles . | . . . . . . . . . . . . . . . . . . . . . . . . . . . . . . . . . . Robots Corrupted 12 | . . . . . . . . . . . . . . 3 . . . . . . . 2 1 . . . . . . . 1 . 5 Combat Hostiles 7 | . . . . . . . . . . . . . . 2 . . . . . . . . 1 . . . . . . . . . 4 Parts Fried 18 | . . . . . 1 . . . . . . . . 2 . . . . . 1 . 9 . . . . . . . . 2 1 2 Impact Corruptions 24 | . . . . . . . . . . . . . . . . . . 1 . . . 2 1 . . . . 1 . . 2 3 14 Robots Melted 8 | . . . . . 1 . . . 1 . . . . . . . . . 1 . . . . . . . . . . . 1 3 1 Combat Hostiles 8 | . . . . . 1 . . . 1 . . . . . . . . . 1 . . . . . . . . . . . 1 3 1 Parts Melted 63 | . 3 . . . 10 5 1 . 1 4 . 1 . 1 . . . 2 3 . . . 5 . 1 1 . . . . 12 9 4 Heat Transferred 32056 | 50 1017 . . . 3343 2417 1295 . 544 1838 524 411 . 616 400 25 450 600 1737 325 25 1304 1875 325 275 399 400 575 50 425 5930 3139 1742 Parts Sabotaged 2 | . . . . . . . . . . . . . . . . . . . . . . . . . . . . . . . . . 2 Parts Stolen . | . . . . . . . . . . . . . . . . . . . . . . . . . . . . . . . . . . Parts Stripped . | . . . . . . . . . . . . . . . . . . . . . . . . . . . . . . . . . . Power Chain Reactions 1 | . . . . . 1 . . . . . . . . . . . . . . . . . . . . . . . . . . . . Alert | -11 -10 -10 -10 -9 -8 -8 -8 -7 -7 -6 -6 -6 -6 -6 -5 -5 -5 -5 -5 -5 -5 -5 -4 -4 -4 -4 -3 -3 -3 -2 -1 -1 -1 ------- Run | Yrd Mat Min Exi Min Mat Gar Mat Fac DSF Fac Low Low Zio Dee Pro Fac Was Fac Ext Cet Arc Hub Fac Upp Upp War Pro Res Qua Res Acc Gar Acc Maximum Alert Level 5 | . 1 . . . . 3 2 . 1 2 . . . . . . . 1 1 1 . 3 2 . . . . . 5 4 5 5 5 Low Security (%) 42 | 100 75 100 . 100 100 17 53 100 87 76 . . . . . 100 100 37 73 73 100 8 . . . . . 100 . . . . . Level 1 16 | . 24 . . . . 12 25 . 12 21 . . . . . . . 62 26 26 . 7 59 . . . . . . . . . . Level 2 14 | . . . . . . 39 21 . . 2 . . . . . . . . . . . 56 40 . . . . . . . 41 . . Level 3 10 | . . . . . . 30 . . . . . . . . . . . . . . . 27 . . . . . . . 92 23 . . Level 4 3 | . . . . . . . . . . . . . . . . . . . . . . . . . . . . . . 7 28 . . Level 5 10 | . . . . . . . . . . . . . . . . . . . . . . . . . . . . . . . 5 100 6 High Security 2 | . . . . . . . . . . . . . . . . . . . . . . . . . . . . . . . 1 . 93 Max Security . | . . . . . . . . . . . . . . . . . . . . . . . . . . . . . 99 . . . . Sterilizations 1 | . . . . . . . . . 1 . . . . . . . . . . . . . . . . . . . . . . . . Peak Influence 4202 | 10 239 140 . . 157 826 432 57 219 614 . . . . . 150 26 391 297 262 173 993 527 . . . . 42 1789 1138 2289 4202 3069 Initial 2520 | . . 60 . . . 78 402 57 . 114 . . . . . 150 25 . 138 136 52 . 457 . . . . . . 1100 508 1831 2520 Average 653 | 1 141 65 . . 52 494 263 26 120 84 . . . . . 116 7 225 136 165 71 550 365 . . . . 6 1696 982 961 2878 2720 Influence Increases 16862 | 20 562 231 . . 671 798 271 . 249 986 306 120 . . 100 213 52 869 779 360 181 1521 935 175 170 480 150 132 189 240 2757 2511 834 Destroy 0b10 Robot/C 8800 | . 320 160 . . 440 400 140 . 180 320 280 100 . . 80 20 . 340 420 160 80 580 480 140 160 480 120 40 100 120 1540 1040 560 Destroy 0b10 Robot/NC 565 | 20 20 5 . . 35 . 25 . 5 70 . . . . 10 . . 25 35 10 . 55 30 . . . 10 20 . 15 135 . 40 Destroy Leader 1404 | . 84 30 . . 110 10 56 . 30 100 20 20 . . 10 10 . 84 36 . . 134 130 20 10 . 20 4 10 12 314 90 60 Allied During Kill 1288 | . . 6 . . 8 . . . . . 6 . . . . . . 350 184 170 80 337 . . . . . . . . . 105 42 Successful Hack 374 | . 17 . . . 7 24 31 . . 77 . . . . . . . 19 34 . . 10 51 . . . . 24 . . 66 14 . Select Force Hacks 60 | . 60 . . . . . . . . . . . . . . . . . . . . . . . . . . . . . . . . Disable Machine 690 | . . . . . 15 30 15 . . 315 . . . . . 15 . 15 30 . 15 105 . . . . . . 30 . 30 75 . Anti-Garrison Action 850 | . . . . . . 250 . . . . . . . . . . . . . . . . . . . . . . . . . 600 . Destroy Structure 2261 | . 1 . . . 11 84 4 . 34 74 . . . . . 18 52 36 40 20 6 270 214 . . . . 44 34 78 627 542 72 Advance Influence 150 | . . . . . . . . . . . . . . . . 150 . . . . . . . . . . . . . . . . . Lose Combat Pursuer 420 | . 60 30 . . 45 . . . . 30 . . . . . . . . . . . 30 30 15 . . . . 15 15 45 45 60 Influence Decreases 15553 | 20 406 387 . . 550 93 970 127 30 595 770 266 . . 100 140 125 586 817 475 311 588 1342 491 230 200 580 132 . 1276 1316 598 2032 Entered New Map 5928 | . . 96 . . . 43 424 70 . 105 226 29 . . . . 48 . 145 109 78 . 476 195 40 150 430 . . 784 340 458 1682 Time Decay 7357 | 20 396 249 . . 364 . 386 57 . 480 494 237 . . 100 130 77 316 602 246 193 418 636 286 180 40 140 132 . 482 686 . 10 Lost Part 868 | . 10 22 . . 146 50 10 . 30 . 10 . . . . 10 . 10 30 . . 10 20 10 10 10 10 . . 10 100 60 300 Lost Ally 950 | . . 20 . . 40 . . . . 10 40 . . . . . . 260 40 120 40 160 60 . . . . . . . 40 80 40 Purge Threat 450 | . . . . . . . 150 . . . . . . . . . . . . . . . 150 . . . . . . . 150 . . Squads Dispatched 106 | . 4 . . . 4 . 1 . 2 9 . . . . . . . 5 . . . 14 8 . . . . 5 12 1 26 . 15 Investigation 8 | . 3 . . . 1 . . . . 2 . . . . . . . . . . . . . . . . . 1 . . 1 . . Extermination 18 | . . . . . . . . . . 5 . . . . . . . 2 . . . 1 4 . . . . . . . 6 . . Reinforcement 38 | . 1 . . . 3 . 1 . 2 2 . . . . . . . 3 . . . 7 4 . . . . 4 . 1 9 . 1 Assault 35 | . . . . . . . . . . . . . . . . . . . . . . 2 . . . . . . 12 . 7 . 14 Garrison 7 | . . . . . . . . . . . . . . . . . . . . . . 4 . . . . . . . . 3 . . Intercept . | . . . . . . . . . . . . . . . . . . . . . . . . . . . . . . . . . . Searches Triggered . | . . . . . . . . . . . . . . . . . . . . . . . . . . . . . . . . . . Unchained Authorized 1 | . . . . . . . . . . . . . . . . . . . . . . . . . . . . . . . 1 . . Construction Impeded 4 | . . . . . . . . . . . . . . . . . . . . . . 1 1 . . . . . . . 2 . . Haulers Reinforced 6 | . . . . . . . . . . 1 . . . . . . . . . . . . . . . . . 2 . 1 2 . . Active Scanning Responses . | . . . . . . . . . . . . . . . . . . . . . . . . . . . . . . . . . . Cargo Convoy Interrupts . | . . . . . . . . . . . . . . . . . . . . . . . . . . . . . . . . . . Stealth | -11 -10 -10 -10 -9 -8 -8 -8 -7 -7 -6 -6 -6 -6 -6 -5 -5 -5 -5 -5 -5 -5 -5 -4 -4 -4 -4 -3 -3 -3 -2 -1 -1 -1 --------- Run | Yrd Mat Min Exi Min Mat Gar Mat Fac DSF Fac Low Low Zio Dee Pro Fac Was Fac Ext Cet Arc Hub Fac Upp Upp War Pro Res Qua Res Acc Gar Acc Distress Signals 29 | . . . . . 8 . . . . 1 . . . . 1 . . 1 . 2 . 4 2 . . . . 2 1 3 4 . . Communications Jammed 27 | . . . . . . . . . . . . . . . . . . . . . . . . . . . . 1 5 . 5 . 16 Distress Signals 23 | . . . . . . . . . . . . . . . . . . . . . . . . . . . . 1 5 . 1 . 16 Times Spotted 670 | . 27 9 . 3 42 19 9 . 9 19 14 6 . 55 5 1 6 20 20 9 1 31 35 8 8 47 8 11 13 10 106 50 69 Peak Tracking Total 37 | . 5 3 . 2 8 5 3 . 3 3 9 4 . 37 3 1 3 4 3 5 1 7 7 4 5 13 3 3 9 4 18 7 17 Tactical Retreats 22 | . 3 2 . . 3 . . . . 1 . . . . . . . . . . . 2 2 1 . . . . 1 1 2 2 2 Traps | -11 -10 -10 -10 -9 -8 -8 -8 -7 -7 -6 -6 -6 -6 -6 -5 -5 -5 -5 -5 -5 -5 -5 -4 -4 -4 -4 -3 -3 -3 -2 -1 -1 -1 ------- Run | Yrd Mat Min Exi Min Mat Gar Mat Fac DSF Fac Low Low Zio Dee Pro Fac Was Fac Ext Cet Arc Hub Fac Upp Upp War Pro Res Qua Res Acc Gar Acc Traps Triggered 13 | . 1 . . . . 2 . . . 1 . . . . . 1 . . 1 . . . 1 . . . . . . . 1 4 1 Indirectly . | . . . . . . . . . . . . . . . . . . . . . . . . . . . . . . . . . . Trap Hack Attempts . | . . . . . . . . . . . . . . . . . . . . . . . . . . . . . . . . . . Triggered . | . . . . . . . . . . . . . . . . . . . . . . . . . . . . . . . . . . Disarmed . | . . . . . . . . . . . . . . . . . . . . . . . . . . . . . . . . . . Reprogrammed . | . . . . . . . . . . . . . . . . . . . . . . . . . . . . . . . . . . Reused . | . . . . . . . . . . . . . . . . . . . . . . . . . . . . . . . . . . Traps Extracted . | . . . . . . . . . . . . . . . . . . . . . . . . . . . . . . . . . . Installed 1 | . . . . . 1 . . . . . . . . . . . . . . . . . . . . . . . . . . . . Triggered . | . . . . . . . . . . . . . . . . . . . . . . . . . . . . . . . . . . Most Traps Carried 3 | . . 3 3 3 3 . . . . . . . . . . . . . . . . . . . . . . . . . . . . Machines | -11 -10 -10 -10 -9 -8 -8 -8 -7 -7 -6 -6 -6 -6 -6 -5 -5 -5 -5 -5 -5 -5 -5 -4 -4 -4 -4 -3 -3 -3 -2 -1 -1 -1 ---------- Run | Yrd Mat Min Exi Min Mat Gar Mat Fac DSF Fac Low Low Zio Dee Pro Fac Was Fac Ext Cet Arc Hub Fac Upp Upp War Pro Res Qua Res Acc Gar Acc Machines Disabled 73 | . . . . . 1 6 1 . . 21 2 1 3 3 . 1 . 1 5 . 1 7 . . . 1 . . 2 . 2 15 . Max in Single Turn 11 | . . . . . 1 2 1 . . 11 2 1 1 1 . 1 . . 1 . . 4 . . . 1 . . 1 . 1 2 . Garrison Access 3 | . . . . . . . . . . . . . . . . . . . . . . 1 . . . . . . . 1 1 . . Garrison Relay 5 | . . . . . . 2 . . . . . . . . . . . . . . . . . . . . . . . . . 3 . Phase Generator 2 | . . . . . . 1 . . . . . . . . . . . . . . . . . . . . . . . . . 1 . Network Hub 1 | . . . . . . . . . . . . . . . . . . . . . . 1 . . . . . . . . . . . Machines Repaired . | . . . . . . . . . . . . . . . . . . . . . . . . . . . . . . . . . . Machines Dismantled 6 | . . . . . . . . . . . . . 3 . . . . . 2 . . . . . . 1 . . . . . . . Machines Sabotaged . | . . . . . . . . . . . . . . . . . . . . . . . . . . . . . . . . . . Overloaded Fab Kills . | . . . . . . . . . . . . . . . . . . . . . . . . . . . . . . . . . . Hacking | -11 -10 -10 -10 -9 -8 -8 -8 -7 -7 -6 -6 -6 -6 -6 -5 -5 -5 -5 -5 -5 -5 -5 -4 -4 -4 -4 -3 -3 -3 -2 -1 -1 -1 --------- Run | Yrd Mat Min Exi Min Mat Gar Mat Fac DSF Fac Low Low Zio Dee Pro Fac Was Fac Ext Cet Arc Hub Fac Upp Upp War Pro Res Qua Res Acc Gar Acc Machines Accessed 73 | . 5 . 2 . 5 2 6 1 . 13 2 . 1 . . 2 . 3 10 . . 2 7 1 1 1 . 2 . 1 5 1 . Terminals 41 | . 3 . . . 2 2 5 1 . 8 . . . . . 1 . 2 10 . . 1 . . . . . 1 . 1 3 1 . Fabricators 4 | . . . . . . . . . . 1 . . . . . . . 1 . . . . 2 . . . . . . . . . . Repair Stations 3 | . . . . . 1 . . . . 1 . . . . . . . . . . . . 1 . . . . . . . . . . Recycling Units 8 | . 2 . . . 1 . . . . 2 . . . . . . . . . . . . 2 . . . . 1 . . . . . Scanalyzers 2 | . . . . . . . 1 . . 1 . . . . . . . . . . . . . . . . . . . . . . . Garrison Access 7 | . . . . . 1 . . . . . . . . . . 1 . . . . . 1 2 . . . . . . . 2 . . Total Hacks 207 | . 12 . 2 . 12 2 19 1 . 46 7 . 5 . . 3 . 6 22 . . 8 28 1 1 6 . 8 . 4 12 2 . Successful 128 | . 6 . 2 . 4 2 14 1 . 31 7 . 5 . . 2 . 4 13 . . 6 14 1 1 6 . 3 . 1 4 1 . Failed 78 | . 5 . . . 8 . 5 . . 15 . . . . . 1 . 2 9 . . 2 14 . . . . 5 . 3 8 1 . Catastrophic 13 | . . . . . . . . . . 2 . . . . . 1 . . 2 . . . 4 . . . . . . . 3 1 . Database Lockouts 1 | . 1 . . . . . . . . . . . . . . . . . . . . . . . . . . . . . . . . Manual 122 | . 12 . 1 . 11 . 13 . . 29 . . 1 . . 1 . 3 16 1 . 4 20 . . . . 7 . . 2 1 . Terminals 119 | . 10 . . . 4 2 16 1 . 29 . . . . . 2 . 3 22 . . 7 4 . . . . 5 . 4 8 2 . Fabricators 12 | . . . . . . . . . . 3 . . . . . . . 3 . . . . 6 . . . . . . . . . . Repair Stations 8 | . . . . . 3 . . . . 1 . . . . . . . . . . . . 4 . . . . . . . . . . Recycling Units 27 | . 2 . . . 4 . . . . 6 . . . . . . . . . . . . 12 . . . . 3 . . . . . Scanalyzers 10 | . . . . . . . 3 . . 7 . . . . . . . . . . . . . . . . . . . . . . . Garrison Access 9 | . . . . . 1 . . . . . . . . . . 1 . . . . . 1 2 . . . . . . . 4 . . Terminal Hacks 55 | . 1 . 2 . 1 2 4 1 . 6 7 . 5 . . 1 . 2 5 . . 3 2 1 1 6 . 1 . 1 2 1 . Record 7 | . . . 1 . . . . . . . 6 . . . . . . . . . . . . . . . . . . . . . . Part Schematic 7 | . 1 . . . . . . . . 1 . . 5 . . . . . . . . . . . . . . . . . . . . Robot Analysis 1 | . . . . . . . . . . . . . . . . . . . . . . . . . . . . . . . 1 . . Prototype ID Bank 8 | . . . . . . . . . . 1 . . . . . . . . 1 . . . . . . 6 . . . . . . . Open Door 6 | . . . . . . . . . . . 1 . . . . . . . 3 . . . . 1 1 . . . . . . . . Open DSF 2 | . . . . . . . . 1 . . . . . . . . . 1 . . . . . . . . . . . . . . . Level Access Points 1 | . . . . . . . 1 . . . . . . . . . . . . . . . . . . . . . . . . . . Branch Access Points 2 | . . . . . . . . . . 1 . . . . . . . 1 . . . . . . . . . . . . . . . Emergency Access Points 2 | . . . . . . 1 . . . . . . . . . . . . . . . . . . . . . . . . . 1 . Terminal Index 4 | . . . . . 1 . 1 . . 1 . . . . . . . . . . . 1 . . . . . . . . . . . Fabricator Index 1 | . . . . . . . . . . . . . . . . . . . . . . . 1 . . . . . . . . . . Alert Level 5 | . . . . . . . 1 . . 1 . . . . . . . . . . . . 1 . . . . 1 . 1 . . . Unreport Threat 2 | . . . . . . . 1 . . . . . . . . . . . . . . . . . . . . . . . 1 . . Locate Traps 2 | . . . . . . . . . . . . . . . . 1 . . . . . 1 . . . . . . . . . . . Security Status 1 | . . . . . . . . . . . . . . . . . . . 1 . . . . . . . . . . . . . . Zone Layout 2 | . . . . . . . . . . 1 . . . . . . . . . . . 1 . . . . . . . . . . . Garrison Registry 1 | . . . . . . 1 . . . . . . . . . . . . . . . . . . . . . . . . . . . Proto ID Catalog 1 | . . . 1 . . . . . . . . . . . . . . . . . . . . . . . . . . . . . . Fabricator Hacks 3 | . . . . . . . . . . 1 . . . . . . . 1 . . . . 1 . . . . . . . . . . Network Status 3 | . . . . . . . . . . 1 . . . . . . . 1 . . . . 1 . . . . . . . . . . Repair Station Hacks 2 | . . . . . . . . . . . . . . . . . . . . . . . 2 . . . . . . . . . . Scan Component 1 | . . . . . . . . . . . . . . . . . . . . . . . 1 . . . . . . . . . . Repair 1 | . . . . . . . . . . . . . . . . . . . . . . . 1 . . . . . . . . . . Recycling Unit Hacks 2 | . . . . . . . . . . 1 . . . . . . . . . . . . 1 . . . . . . . . . . Retrieve Components 2 | . . . . . . . . . . 1 . . . . . . . . . . . . 1 . . . . . . . . . . Scanalyzer 10 | . . . . . . . 3 . . 7 . . . . . . . . . . . . . . . . . . . . . . . Insert Component 3 | . . . . . . . 1 . . 2 . . . . . . . . . . . . . . . . . . . . . . . Analyze 5 | . . . . . . . 1 . . 4 . . . . . . . . . . . . . . . . . . . . . . . Retrieve Study 2 | . . . . . . . 1 . . 1 . . . . . . . . . . . . . . . . . . . . . . . Garrison Access Hacks 3 | . . . . . 1 . . . . . . . . . . . . . . . . 1 . . . . . . . . 1 . . Unlock Access 3 | . . . . . 1 . . . . . . . . . . . . . . . . 1 . . . . . . . . 1 . . Unauthorized Hacks 53 | . 5 . . . 2 . 7 . . 16 . . . . . 1 . 1 8 . . 2 8 . . . . 2 . . 1 . . Terminals 37 | . 3 . . . 1 . 7 . . 11 . . . . . 1 . . 8 . . 2 2 . . . . 1 . . 1 . . Track 5 | . . . . . . . 1 . . 2 . . . . . 1 . . 1 . . . . . . . . . . . . . . Assimilate 2 | . . . . . . . . . . 2 . . . . . . . . . . . . . . . . . . . . . . . Botnet 10 | . 1 . . . 1 . 1 . . 2 . . . . . . . . 2 . . 1 . . . . . 1 . . 1 . . Disrupt 1 | . . . . . . . 1 . . . . . . . . . . . . . . . . . . . . . . . . . . Operators 4 | . 1 . . . . . 1 . . 1 . . . . . . . . . . . . 1 . . . . . . . . . . Skim 15 | . 1 . . . . . 3 . . 4 . . . . . . . . 5 . . 1 1 . . . . . . . . . . Fabricators 4 | . . . . . . . . . . . . . . . . . . 1 . . . . 3 . . . . . . . . . . Liberate 3 | . . . . . . . . . . . . . . . . . . 1 . . . . 2 . . . . . . . . . . Haulers 1 | . . . . . . . . . . . . . . . . . . . . . . . 1 . . . . . . . . . . Repair Stations 2 | . . . . . 1 . . . . 1 . . . . . . . . . . . . . . . . . . . . . . . Mechanics 2 | . . . . . 1 . . . . 1 . . . . . . . . . . . . . . . . . . . . . . . Recycling Units 10 | . 2 . . . . . . . . 4 . . . . . . . . . . . . 3 . . . . 1 . . . . . Reject 2 | . . . . . . . . . . 1 . . . . . . . . . . . . 1 . . . . . . . . . . Recyclers 3 | . . . . . . . . . . 1 . . . . . . . . . . . . 1 . . . . 1 . . . . . Mask 3 | . . . . . . . . . . 2 . . . . . . . . . . . . 1 . . . . . . . . . . Tunnel 2 | . 2 . . . . . . . . . . . . . . . . . . . . . . . . . . . . . . . . Scanalyzers . | . . . . . . . . . . . . . . . . . . . . . . . . . . . . . . . . . . Garrison Access . | . . . . . . . . . . . . . . . . . . . . . . . . . . . . . . . . . . Data Cores Recovered 2 | . . . . . . . . . . . . . . . . . . . 1 . . . . . . . . . . . 1 . . Used . | . . . . . . . . . . . . . . . . . . . . . . . . . . . . . . . . . . Hacking Detections 51 | . 3 . . . 3 . 6 . . 11 . . . . . 1 . 2 8 . . 1 7 . . . . 2 . 1 5 1 . Full Trace Events 3 | . . . . . 1 . . . . 1 . . . . . . . . . . . . . . . . . . . . 1 . . Feedback Events . | . . . . . . . . . . . . . . . . . . . . . . . . . . . . . . . . . . Feedback Blocked . | . . . . . . . . . . . . . . . . . . . . . . . . . . . . . . . . . . Robot Schematics Acquired 4 | . . . . . . . . . . . . . 4 . . . . . . . . . . . . . . . . . . . . Robots Built . | . . . . . . . . . . . . . . . . . . . . . . . . . . . . . . . . . . Authchips . | . . . . . . . . . . . . . . . . . . . . . . . . . . . . . . . . . . Time . | . . . . . . . . . . . . . . . . . . . . . . . . . . . . . . . . . . Total Robot Build Rating . | . . . . . . . . . . . . . . . . . . . . . . . . . . . . . . . . . . Part Schematics Acquired 25 | . 1 . . . . . 1 . . 3 . . 20 . . . . . . . . . . . . . . . . . . . . Parts Built . | . . . . . . . . . . . . . . . . . . . . . . . . . . . . . . . . . . Authchips . | . . . . . . . . . . . . . . . . . . . . . . . . . . . . . . . . . . Time . | . . . . . . . . . . . . . . . . . . . . . . . . . . . . . . . . . . Total Part Build Rating . | . . . . . . . . . . . . . . . . . . . . . . . . . . . . . . . . . . Part Studies Acquired 2 | . . . . . . . 1 . . 1 . . . . . . . . . . . . . . . . . . . . . . . Parts Repaired 1 | . . . . . . . . . . . . . . . . . . . . . . . 1 . . . . . . . . . . Time 108 | . . . . . . . . . . . . . . . . . . . . . . . 108 . . . . . . . . . . Parts Recycled . | . . . . . . . . . . . . . . . . . . . . . . . . . . . . . . . . . . Recycled Matter . | . . . . . . . . . . . . . . . . . . . . . . . . . . . . . . . . . . Retrieved Matter . | . . . . . . . . . . . . . . . . . . . . . . . . . . . . . . . . . . Retrieved Components 16 | . . . . . . . . . . 10 . . . . . . . . . . . . 6 . . . . . . . . . . Parts Scanalyzed 3 | . . . . . . . 1 . . 2 . . . . . . . . . . . . . . . . . . . . . . . Part Schematics Acquired 3 | . . . . . . . 1 . . 2 . . . . . . . . . . . . . . . . . . . . . . . Parts Damaged . | . . . . . . . . . . . . . . . . . . . . . . . . . . . . . . . . . . Bothacking | -11 -10 -10 -10 -9 -8 -8 -8 -7 -7 -6 -6 -6 -6 -6 -5 -5 -5 -5 -5 -5 -5 -5 -4 -4 -4 -4 -3 -3 -3 -2 -1 -1 -1 ------------ Run | Yrd Mat Min Exi Min Mat Gar Mat Fac DSF Fac Low Low Zio Dee Pro Fac Was Fac Ext Cet Arc Hub Fac Upp Upp War Pro Res Qua Res Acc Gar Acc Used RIF Installer . | . . . . . . . . . . . . . . . . . . . . . . . . . . . . . . . . . . Robots Hacked . | . . . . . . . . . . . . . . . . . . . . . . . . . . . . . . . . . . Non-combat . | . . . . . . . . . . . . . . . . . . . . . . . . . . . . . . . . . . Combat . | . . . . . . . . . . . . . . . . . . . . . . . . . . . . . . . . . . Robot Hacks Applied . | . . . . . . . . . . . . . . . . . . . . . . . . . . . . . . . . . . Relay Couplers Released 22 | . . . . . . 6 . . . . . . . . . . . . . . . 1 . . . . . . . . 2 13 . Machine Destruction 22 | . . . . . . 6 . . . . . . . . . . . . . . . 1 . . . . . . . . 2 13 . Fabnet Peak Effective % . | . . . . . . . . . . . . . . . . . . . . . . . . . . . . . . . . . . Robots Rewired 18 | . . . . . . . . . . . 2 . . . . . . . 11 . . . . . . . . . . . . 5 . Allies Hacked 2 | . . . . . . . . . . . . . . . . . . 2 . . . . . . . . . . . . . . . Hacks Repelled . | . . . . . . . . . . . . . . . . . . . . . . . . . . . . . . . . . . Allies | -11 -10 -10 -10 -9 -8 -8 -8 -7 -7 -6 -6 -6 -6 -6 -5 -5 -5 -5 -5 -5 -5 -5 -4 -4 -4 -4 -3 -3 -3 -2 -1 -1 -1 -------- Run | Yrd Mat Min Exi Min Mat Gar Mat Fac DSF Fac Low Low Zio Dee Pro Fac Was Fac Ext Cet Arc Hub Fac Upp Upp War Pro Res Qua Res Acc Gar Acc Total Allies 69 | . . 3 . 2 . . . . . 1 2 . 2 . . . 19 2 21 5 . . 3 . . . . . . . . 6 3 Largest Group 19 | . . 3 2 4 3 . . . . 1 2 . 2 2 . . 19 17 16 19 14 9 3 . . . . . . . . 4 2 Highest-Rated Group 1028 | . . 40 32 73 42 . . . . 26 61 . 192 192 . . 684 609 612 1028 867 606 141 . . . . . . . . 219 218 Highest-Rated Ally 219 | . . 16 16 31 16 . . . . 26 32 . 96 96 . . 50 50 159 156 156 96 47 . . . . . . . . 219 119 Initial Warlord ECA Mod 22 | . . . . . . . 9 8 8 17 17 17 17 17 16 16 16 16 16 16 16 16 15 15 15 15 14 14 14 13 12 12 22 Total Orders 53 | . . 2 . . . . . . . 1 . . . . . 9 . 1 1 10 7 5 1 . . 2 . . . . 14 . . STAY 9 | . . 1 . . . . . . . 1 . . . . . . . . . 1 6 . . . . . . . . . . . . FOLLOW 10 | . . 1 . . . . . . . . . . . . . . . . . 8 1 . . . . . . . . . . . . EXPLORE 15 | . . . . . . . . . . . . . . . . 3 . . . . . 1 . . . 1 . . . . 10 . . RETURN 19 | . . . . . . . . . . . . . . . . 6 . 1 1 1 . 4 1 . . 1 . . . . 4 . . Ally Attacks 571 | . . 7 . 10 16 . . . . . 11 . . 55 . . 84 93 83 57 17 90 2 . . . . . . . . 35 11 Total Damage 14242 | . . 78 . 126 205 . . . . . 324 . . 1205 . . 2294 1632 1547 1149 379 3398 38 . . . . . . . . 1409 458 Kills 87 | . . . . 4 2 . . . . . 1 . . 7 . . 6 16 9 5 4 16 . . . . . . . . . 14 3 Allies Corrupted 7 | . . . . . . . . . . . . . . 1 . 1 . 1 . . . 3 . . . . . . . . . 1 . Allies Melted 2 | . . . . . . . . . . . . . . . . . . . . . . 1 . . . . . . . 1 . . . Field Lobotomies 4 | . . . . . . . . . . . . . . . . . . . . . . . . . . . . . . . . 1 3 Intel | -11 -10 -10 -10 -9 -8 -8 -8 -7 -7 -6 -6 -6 -6 -6 -5 -5 -5 -5 -5 -5 -5 -5 -4 -4 -4 -4 -3 -3 -3 -2 -1 -1 -1 ------- Run | Yrd Mat Min Exi Min Mat Gar Mat Fac DSF Fac Low Low Zio Dee Pro Fac Was Fac Ext Cet Arc Hub Fac Upp Upp War Pro Res Qua Res Acc Gar Acc Active Infowar (turns) 10510 | 22 474 . . . 595 . . 141 89 94 798 297 . . . . . . . . . 134 543 164 266 5 675 612 204 1248 1502 2207 440 Optics 2 | . . . . . . . . . . . . . . . . . . . . . . . . . . 2 . . . . . . . Terrain 1918 | . . . . . 560 . . 141 89 94 737 297 . . . . . . . . . . . . . . . . . . . . . Structural 1377 | . . . . . . . . . . . . . . . . . . . . . . . . . . . . 342 100 . 919 . 16 Seismic 1151 | 22 474 . . . 594 . . . . . 61 . . . . . . . . . . . . . . . . . . . . . . Cloaking 2941 | . . . . . . . . . . . . . . . . . . . . . . 131 543 162 266 3 675 223 99 241 464 . 134 Spoofing 3 | . . . . . . . . . . . . . . . . . . . . . . 3 . . . . . . . . . . . Jamming 4668 | . . . . . . . . . . . . . . . . . . . . . . . . 2 . . . 389 204 1014 562 2207 290 Robot Analysis Total 1 | . . . . . . . . . . . . . . . . . . . . . . . . . . . . . . . 1 . . Derelict Logs Recovered 6 | . . . . . . . . . . . 1 1 1 . 1 . . . . . . . . 1 1 . . . . . . . . Drone Launches 26 | . . . . . . . . . . . . . . . . 5 . 1 1 1 . 5 1 . . 1 . . . . 11 . . Drone Recoveries 20 | . . . . . . . . . . . . . . . . 4 . 1 1 1 . 4 1 . . 1 . . . . 7 . . Exploration | -11 -10 -10 -10 -9 -8 -8 -8 -7 -7 -6 -6 -6 -6 -6 -5 -5 -5 -5 -5 -5 -5 -5 -4 -4 -4 -4 -3 -3 -3 -2 -1 -1 -1 ------------- Run | Yrd Mat Min Exi Min Mat Gar Mat Fac DSF Fac Low Low Zio Dee Pro Fac Was Fac Ext Cet Arc Hub Fac Upp Upp War Pro Res Qua Res Acc Gar Acc Turns Passed 34068 | 102 1109 540 620 198 1238 1209 909 142 304 2082 1306 587 1399 2530 655 260 339 735 2550 526 500 1043 2257 631 366 1410 879 650 204 1252 2786 2207 543 Spaces Moved 16111 | 60 499 265 385 109 466 435 329 87 137 1094 786 353 842 1325 369 130 164 385 839 195 97 441 1111 350 175 681 375 387 140 930 1212 781 177 Core 10 | 10 . . . . . . . . . . . . . . . . . . . . . . . . . . . . . . . . . Treads 5349 | . . 222 385 109 341 435 329 87 117 . . . . . . . . . . 47 97 441 1111 350 175 681 375 . . . . . 47 Legs 5289 | 50 499 43 . . 125 . . . . . . . . 2 . . . 3 839 148 . . . . . . . 387 140 930 1212 781 130 Wheels 5463 | . . . . . . . . . 20 1094 786 353 842 1323 369 130 164 382 . . . . . . . . . . . . . . . Hover . | . . . . . . . . . . . . . . . . . . . . . . . . . . . . . . . . . . Flight . | . . . . . . . . . . . . . . . . . . . . . . . . . . . . . . . . . . Fastest Speed 50 | 50 120 160 160 160 160 160 160 160 130 130 150 150 135 150 150 165 165 165 183 160 160 160 160 160 160 160 160 100 120 120 120 120 182 Average Speed 159 | 108 162 164 160 160 170 161 231 160 154 155 150 150 149 150 150 165 165 165 192 183 160 176 160 160 160 160 160 114 120 120 170 175 187 Slowest Speed 330 | 120 190 190 160 160 330 163 240 160 160 160 150 150 150 210 150 165 165 210 210 240 160 320 240 160 160 250 240 120 120 120 176 182 200 Overloaded Moves . | . . . . . . . . . . . . . . . . . . . . . . . . . . . . . . . . . . Propulsion Burnouts . | . . . . . . . . . . . . . . . . . . . . . . . . . . . . . . . . . . Robots Hopped . | . . . . . . . . . . . . . . . . . . . . . . . . . . . . . . . . . . Potential Cave-ins 8 | . . . . . . . . . . . . . . . . . . . . . . . 3 . . . . . 3 . 2 . . Cave-ins Triggered 1 | . . . . . . . . . . . . . . . . . . . . . . . . . . . . . . 1 . . . Exploration Rate (%) 50 | 5 70 50 77 22 38 56 29 2 95 26 96 71 85 79 55 11 73 16 84 68 71 43 41 47 41 87 58 14 31 32 48 78 6 Regions Visited 33 Branch Regions 17 Pre-discovered Areas 13 | . 2 1 1 . . . . . . . 1 . 4 . 1 . . . 3 . . . . . . . . . . . . . . Known Exits Taken 11 | . . . . . 1 . 1 1 . 1 . . . . . . . 1 . . . 1 1 . . . 1 1 1 . 1 . . Unknown Exits Taken 17 | 1 1 1 1 1 . . . . . . 1 1 1 1 1 . . . 1 1 1 . . 1 1 1 . . . 1 . . . Scrap Searched 16 | . . . . 1 . . . . . . 5 1 5 . . . . . . . . . . 2 . . 2 . . . . . . Spaces Dug 267 | . . . . . 1 . 3 . 5 8 7 1 . . . 8 1 1 . . . 8 41 21 . 18 49 12 17 16 46 3 1 Terrain Destroyed 1622 | . . . . . 4 90 3 . 41 84 72 22 . 25 7 9 1 18 11 6 1 216 131 45 29 139 93 27 22 27 243 233 23 Melee 2 | . . . . . . . . . . 2 . . . . . . . . . . . . . . . . . . . . . . . Projectile 412 | . . . . . 1 . 3 . . 14 12 5 . 7 7 9 1 18 11 6 1 18 78 5 6 2 29 27 11 16 87 29 9 AOE 1208 | . . . . . 3 90 . . 41 68 60 17 . 18 . . . . . . . 198 53 40 23 137 64 . 11 11 156 204 14 Terrain Rammed . | . . . . . . . . . . . . . . . . . . . . . . . . . . . . . . . . . . Walls Destroyed . | . . . . . . . . . . . . . . . . . . . . . . . . . . . . . . . . . . Machines Disabled . | . . . . . . . . . . . . . . . . . . . . . . . . . . . . . . . . . . Actions | -11 -10 -10 -10 -9 -8 -8 -8 -7 -7 -6 -6 -6 -6 -6 -5 -5 -5 -5 -5 -5 -5 -5 -4 -4 -4 -4 -3 -3 -3 -2 -1 -1 -1 --------- Run | Yrd Mat Min Exi Min Mat Gar Mat Fac DSF Fac Low Low Zio Dee Pro Fac Was Fac Ext Cet Arc Hub Fac Upp Upp War Pro Res Qua Res Acc Gar Acc Total 22218 | 85 670 310 389 133 704 818 409 90 202 1364 858 380 921 1764 448 167 217 434 1656 347 440 607 1400 402 243 949 601 545 158 1022 1697 1463 325 Wait 3336 | 2 48 4 3 25 30 288 4 . 3 129 7 5 30 224 66 13 25 18 549 110 336 47 133 24 49 164 174 88 . 23 171 519 25 Move 16080 | 60 499 264 384 108 465 434 328 86 136 1093 785 352 841 1324 368 130 163 385 838 194 96 440 1110 349 174 680 374 386 139 929 1211 778 177 Hop . | . . . . . . . . . . . . . . . . . . . . . . . . . . . . . . . . . . Pick Up 228 | 11 13 4 1 . 34 3 8 2 12 21 4 . 2 37 1 1 3 1 3 4 1 7 5 2 . 10 1 5 . 5 22 4 1 Fast Attach 103 | 3 2 . . . 6 5 2 . 4 5 1 . 4 11 . 2 3 . 3 5 1 6 . 3 1 9 2 2 . 8 11 3 1 Attach 120 | 4 1 2 1 . 17 4 1 2 3 3 2 . 2 21 . 2 . . 3 2 . 4 1 . 1 2 . 7 . 1 10 3 21 Detach 56 | . . . . . 2 1 1 . 1 . . . 2 11 . 2 1 . 4 1 . 3 3 1 1 1 . 2 . 1 9 4 5 Swap 305 | . 18 2 . . 22 7 12 . 9 15 16 7 8 27 . 3 2 1 6 5 2 11 22 4 5 12 6 8 3 10 44 14 4 Drop 311 | . 14 2 . . 18 5 15 . 14 22 4 . 4 40 1 5 10 1 6 16 3 18 3 7 3 23 9 11 . 14 30 12 1 Fire 1324 | 5 69 28 . . 106 70 36 . 20 72 34 16 1 57 12 9 10 22 43 10 1 60 117 12 9 40 35 34 16 29 186 92 73 Melee 11 | . . . . . . . . . . 4 . . . 7 . . . . . . . . . . . . . . . . . . . Ram . | . . . . . . . . . . . . . . . . . . . . . . . . . . . . . . . . . . Kick 21 | . 6 . . . 1 . . . . . . . . . . . . 6 . . . . . . . . . 2 . 2 3 . 1 Crush 25 | . . 4 . . 2 . 2 . . . . . . . . . . . . . . 11 6 . . . . . . . . . . Escape Stasis 27 | . . . . . . 1 . . . . . . . . . . . . . . . . . . . . . . . . . 10 16 Rewire 219 | . . . . . . . . . . . 5 . . 5 . . . . 185 . . . . . . . . . . . . 24 . Trap 1 | . . . . . 1 . . . . . . . . . . . . . . . . . . . . . . . . . . . . Miscellaneous 51 | . . . . . . . . . . . . . 27 . . . . . 16 . . . . . . 8 . . . . . . . Route ------- -11/Scrapyard -10/Materials (discovered 4 exits: [*Mat x2] / [*Min x2]) -10/Mines -10/Exiles -9/Mines -8/Materials (discovered 3 exits: *Fac / [*Sto] / Gar) -8/Garrison (discovered 3 exits: *Mat x3) -8/Materials (discovered 4 exits: *Fac x3 / [*Sto]) -7/Factory -7/DSF -6/Factory (discovered 3 exits: Fac / *Low x2) -6/Lower Caves -6/Lower Caves -6/Zion (discovered 2 exits: [*Dee] / [*Pro]) -6/Deep Caves -5/Proximity Caves -5/Factory (discovered 8 exits: Fac x4 / Upp x2 / Ext x2) -5/Waste -5/Factory (discovered 4 exits: Upp x2 / *Ext x2) -5/Extension (discovered 2 exits: *Fac / *Cet) -5/Cetus (discovered 2 exits: *Fac / [*Arc]) -5/Archives (discovered 2 exits: *Hub x2) -5/Hub_04(d) (discovered 4 exits: *Fac x4) -4/Factory (discovered 7 exits: *Res x4 / *Upp x2 / Arm) -4/Upper Caves -4/Upper Caves -4/Warlord -3/Proximity Caves -3/Research (discovered 2 exits: Res / *Qua) -3/Quarantine -2/Research (discovered 3 exits: *Acc / Tes x2) -1/Access -1/Garrison (discovered 3 exits: [*Acc x3]) -1/Access History --------- Turn | Location | Event 7 | -11/Scrapyard | Discovered new exit (range 15) 103 | -11/Scrapyard | Entered Materials 258 | -10/Materials | Discovered new exit (range 9) 312 | -10/Materials | Build established: Mutant 428 | -10/Materials | Discovered new exit (range 3) 508 | -10/Materials | Core integrity fell below 50% 622 | -10/Materials | Discovered new exit (range 12) 857 | -10/Materials | Build established: Scavenger-Mutant 1117 | -10/Materials | Discovered new exit (range 10) 1152 | -10/Materials | Central database locked down 1212 | -10/Materials | Entered Mines 1213 | -10/Mines | Learned location of Storage (-8) 1434 | -10/Mines | Deemed a non-threat by the Exiles lab entrance 1436 | -10/Mines | Discovered new exit (range 5) 1487 | -10/Mines | Assisted by bots powering up and referring to "LRC-V3" 1619 | -10/Mines | Build established: Mutant 1621 | -10/Mines | Core integrity fell below 20% 1656 | -10/Mines | Found a hidden stash of uninstalled traps 1658 | -10/Mines | Lost 3 parts (1p2w) 1752 | -10/Mines | Entered Exiles 1752 | -10/Exiles | Accompanied by 2 allies 1793 | -10/Exiles | Met 8R-AWN 1820 | -10/Exiles | Met EX-HEX 1905 | -10/Exiles | Met EX-DEC 1939 | -10/Exiles | Visited The Gauntlet 2023 | -10/Exiles | Learned location of Zion (-6) 2145 | -10/Exiles | Met EX-BIN 2169 | -10/Exiles | Aligned with FarCom system 2170 | -10/Exiles | Given EX-Vault access code 2207 | -10/Exiles | Opened EX-Vault 2218 | -10/Exiles | Found Field Lobotomy Kit 2251 | -10/Exiles | Warned to stay clear of 0b10 Research branches 2352 | -10/Exiles | Discovered new exit (range 12) 2372 | -10/Exiles | Left Exiles lab with Field Lobotomy Kit 2372 | -10/Exiles | Entered Mines 2372 | -9/Mines | Accompanied by 2 allies 2373 | -9/Mines | Assembled infested the area 2528 | -9/Mines | Discovered new exit (range 5) 2570 | -9/Mines | Entered Materials 2570 | -8/Materials | Accompanied by 3 allies 2570 | -8/Materials | Evolved 4 slots: Propulsion x1, Utility x3 2882 | -8/Materials | Build established: Scavenger-Skirmisher 3023 | -8/Materials | Discovered new exit (range 15) 3086 | -8/Materials | Identified exit to Garrison 3242 | -8/Materials | Lost 7 parts (1p3n2u1w) 3252 | -8/Materials | Discovered new exit (range 12) 3463 | -8/Materials | Build established: Scavenger-Mutant 3489 | -8/Materials | Core integrity fell below 50% 3564 | -8/Materials | Lost 8 parts (1p3n3u1w) 3808 | -8/Materials | Entered Garrison 3926 | -8/Garrison | Triggered checkpoint 3996 | -8/Garrison | Lost 3 parts (1p1n1u) 4018 | -8/Garrison | Garrison Relay disabled 4126 | -8/Garrison | Triggered checkpoint 4192 | -8/Garrison | Destroyed 7 combat bots 4304 | -8/Garrison | Phase Generator disabled 4361 | -8/Garrison | Discovered new exit (range 10) 4470 | -8/Garrison | Discovered new exit (range 7) 4570 | -8/Garrison | Triggered checkpoint 4580 | -8/Garrison | Core integrity fell below 20% 4618 | -8/Garrison | Discovered new exit (range 52) 4618 | -8/Garrison | Discovered new exit (range 20) 4618 | -8/Garrison | Discovered new exit (range 44) 4648 | -8/Garrison | Garrison Relay disabled 5017 | -8/Garrison | Entered Materials 5158 | -8/Materials | Identified exit to Factory 5601 | -8/Materials | Discovered new exit (range 14) 5926 | -8/Materials | Entered Factory 5926 | -7/Factory | Evolved 2 slots: Propulsion x1, Utility x1 6017 | -7/Factory | Identified exit to DSF 6068 | -7/Factory | Entered DSF 6133 | -7/DSF | Additional patrols routed to DSF 6195 | -7/DSF | Lost 3 parts (2u1w) 6273 | -7/DSF | Sterilization system engaged 6293 | -7/DSF | Ambient heat levels rising (+10) 6301 | -7/DSF | Discovered new exit (range 15) 6308 | -7/DSF | Ambient heat levels rising (+10) 6323 | -7/DSF | Ambient heat levels rising (+10) 6338 | -7/DSF | Ambient heat levels rising (+10) 6353 | -7/DSF | Ambient heat levels rising (+10) 6368 | -7/DSF | Ambient heat levels rising (+10) 6372 | -7/DSF | Entered Factory 6372 | -6/Factory | Evolved 2 slots: Utility x2 6724 | -6/Factory | Identified exit to Lower Caves 7266 | -6/Factory | Build established: Hacker-Mutant 7834 | -6/Factory | Build established: Mutant 8180 | -6/Factory | Discovered new exit (range 15) 8454 | -6/Factory | Entered Lower Caves 8460 | -6/Lower Caves | Met a Warlord Commander 8461 | -6/Lower Caves | Learned location of Warlord (-4) 8462 | -6/Lower Caves | Warlord Commander delivered Encrypted Comm Array 8506 | -6/Lower Caves | Attracted the attention of an 0b10 outpost 8541 | -6/Lower Caves | Destroyed 9 combat bots 8870 | -6/Lower Caves | Attracted the attention of an 0b10 checkpoint 9390 | -6/Lower Caves | Entered an active Warlord outpost 9404 | -6/Lower Caves | Learned Extension trap positions 9404 | -6/Lower Caves | Learned Armory security intel 9480 | -6/Lower Caves | Learned Factory emergency access door positions 9662 | -6/Lower Caves | Discovered new exit (range 9) 9718 | -6/Lower Caves | Build established: Scavenger-Mutant 9760 | -6/Lower Caves | Entered another Lower Caves area 10079 | -6/Lower Caves | Learned Factory non-interactive machine intel 10228 | -6/Lower Caves | Discovered new exit (range 5) 10347 | -6/Lower Caves | Attacked by a delusional Derelict stockpiling Unaware 10347 | -6/Lower Caves | Entered Zion 10427 | -6/Zion | System corruption cleaned by Quarantine Array 10532 | -6/Zion | Given A8's code to call for help 10541 | -6/Zion | Discovered new exit (range 9) 10640 | -6/Zion | Learned Factory scanalyzer intel 10834 | -6/Zion | Learned location of Quarantine (-3) 11020 | -6/Zion | Rebuked by Imprinter 11208 | -6/Zion | Given the Hacking Drone Bay 11208 | -6/Zion | Found Prototype Device 11210 | -6/Zion | Identified Hacking Drone Bay 11627 | -6/Zion | Enhanced Grunt warped into view, answering call for help 11638 | -6/Zion | Enhanced Grunt warped into view, answering call for help 11736 | -6/Zion | Discovered new exit (range 5) 11739 | -6/Zion | Saw the warning signs outside the Deep Caves entrance 11746 | -6/Zion | Entered Deep Caves 11746 | -6/Deep Caves | Accompanied by 2 allies 12032 | -6/Deep Caves | Z-Facility disabled 12042 | -6/Deep Caves | Attacked by Z-Imprinter 12072 | -6/Deep Caves | Allies destroyed Z-Imprinter 12089 | -6/Deep Caves | Lost 3 parts (2u1w) 12232 | -6/Deep Caves | Lost 3 parts (2n1u) 12236 | -6/Deep Caves | Found Prototype Device 12246 | -6/Deep Caves | Identified Exp. Thermal Shield 12253 | -6/Deep Caves | Found Prototype Protection 12253 | -6/Deep Caves | Identified Zio. Weapon Casing 12396 | -6/Deep Caves | Found Zio. Weapon Casing 12404 | -6/Deep Caves | Found Zio. Weapon Casing 12923 | -6/Deep Caves | Spotted AG-21626 12960 | -6/Deep Caves | Destroyed AG-21626 13034 | -6/Deep Caves | Spotted AG-83869 13077 | -6/Deep Caves | Destroyed AG-83869 13119 | -6/Deep Caves | Triggered Deep Caves wall 13119 | -6/Deep Caves | Spotted AS-02081 13119 | -6/Deep Caves | Spotted AS-39749 13126 | -6/Deep Caves | Destroyed AS-39749 13140 | -6/Deep Caves | Destroyed AS-02081 13163 | -6/Deep Caves | Destroyed 37 combat bots 13184 | -6/Deep Caves | Lost 3 parts (1n2u) 13487 | -6/Deep Caves | Exposed GOLEM chamber 13491 | -6/Deep Caves | Found GOLEM Unit 13502 | -6/Deep Caves | Found GOLEM Unit 13526 | -6/Deep Caves | Found Latent Energy Streamer 13980 | -6/Deep Caves | Build established: Golem 14269 | -6/Deep Caves | Discovered new exit (range 6) 14276 | -6/Deep Caves | Entered Proximity Caves 14279 | -5/Proximity Caves | Spotter reported a threat 14838 | -5/Proximity Caves | Discovered new exit (range 14) 14890 | -5/Proximity Caves | Learned location of Armory (-4) 14931 | -5/Proximity Caves | Entered Factory 14931 | -5/Factory | Evolved 2 slots: Power x1, Utility x1 14933 | -5/Factory | Loaded intel: 221 non-interactive machine locations 14934 | -5/Factory | Loaded intel: 4 scanalyzer locations 15049 | -5/Factory | Identified exit to Factory 15168 | -5/Factory | Identified exit to Upper Caves 15168 | -5/Factory | Identified exit to Extension 15191 | -5/Factory | Sucked down chute 15191 | -5/Factory | Entered Waste 15209 | -5/Waste | Spotted C-40 Crusher 15212 | -5/Waste | Spotted C-40 Crusher 15222 | -5/Waste | Warlord forces began an assault 15229 | -5/Waste | Allies destroyed C-40 Crusher 15230 | -5/Waste | Allies destroyed C-40 Crusher 15316 | -5/Waste | Spotted C-40 Crusher 15322 | -5/Waste | Allies destroyed C-40 Crusher 15324 | -5/Waste | Spotted C-40 Crusher 15325 | -5/Waste | Spotted C-40 Crusher 15326 | -5/Waste | Allies destroyed C-40 Crusher 15331 | -5/Waste | Allies destroyed C-40 Crusher 15336 | -5/Waste | Spotted C-40 Crusher 15337 | -5/Waste | Allies destroyed C-40 Crusher 15386 | -5/Waste | Found Damper Plating 15438 | -5/Waste | Discovered new exit (range 12) 15530 | -5/Waste | Entered Factory 15530 | -5/Factory | Accompanied by 17 allies 16137 | -5/Factory | Lost 6 allies 16220 | -5/Factory | Lost 6 allies 16265 | -5/Factory | Entered Extension 16266 | -5/Extension | Loaded intel: 15 trap records 16967 | -5/Extension | Rescued A7 17028 | -5/Extension | Rescued a captive Derelict 17028 | -5/Extension | Rescued a captive Derelict 17091 | -5/Extension | Rescued a captive Derelict 17092 | -5/Extension | Rescued a captive Derelict 17431 | -5/Extension | Rescued a captive Derelict 17431 | -5/Extension | Rescued a captive Derelict 17800 | -5/Extension | Spotted B-75 Beast 17802 | -5/Extension | Build established: Commander-Golem 17815 | -5/Extension | Allies destroyed B-75 Beast 17832 | -5/Extension | Spotted B-75 Beast 17841 | -5/Extension | Destroyed B-75 Beast 17865 | -5/Extension | Lost 4 allies 18093 | -5/Extension | Rescued a captive Derelict 18095 | -5/Extension | Rescued a captive Derelict 18337 | -5/Extension | Rescued a captive Derelict 18439 | -5/Extension | Learned location of Proximity Caves (-5) 18540 | -5/Extension | Learned location of 2 exits from Research 18573 | -5/Extension | Learned Testing emergency access door positions 18606 | -5/Extension | Learned Factory security intel 18657 | -5/Extension | Learned Research trap positions 18734 | -5/Extension | Discovered exit to Factory (range 10) 18736 | -5/Extension | Discovered new exit (range 6) 18815 | -5/Extension | Entered Cetus 18815 | -5/Cetus | Accompanied by 16 allies (A7) 18820 | -5/Cetus | Acquired a Cetus Manufacturing Module code from A7 18850 | -5/Cetus | Spotted Cetus Guard 18850 | -5/Cetus | Spotted Cetus Guard 18850 | -5/Cetus | Spotted Cetus Guard 18853 | -5/Cetus | Allies destroyed Cetus Guard 18860 | -5/Cetus | Destroyed Cetus Guard 18872 | -5/Cetus | Allies destroyed Cetus Guard 18993 | -5/Cetus | Started Cetus Manufacturing Module 19018 | -5/Cetus | Manufactured an Enhanced Grunt 19027 | -5/Cetus | Escorted A7 to Cetus Mainframe 19043 | -5/Cetus | Manufactured an Enhanced Grunt 19068 | -5/Cetus | Manufactured an Enhanced Grunt 19093 | -5/Cetus | Manufactured an Enhanced Grunt 19118 | -5/Cetus | Manufactured an Enhanced Grunt 19146 | -5/Cetus | Discovered new exit (range 15) 19204 | -5/Cetus | Spotted Cetus Guard 19205 | -5/Cetus | Spotted Cetus Guard 19205 | -5/Cetus | Spotted Cetus Guard 19206 | -5/Cetus | Spotted Cetus Guard 19210 | -5/Cetus | Destroyed Cetus Guard 19215 | -5/Cetus | Destroyed Cetus Guard 19223 | -5/Cetus | Destroyed Cetus Guard 19224 | -5/Cetus | Allies destroyed Cetus Guard 19233 | -5/Cetus | Discovered exit to Factory (range 15) 19243 | -5/Cetus | Met Revision 17 19247 | -5/Cetus | Lost 4 allies 19341 | -5/Cetus | Entered Archives 19341 | -5/Archives | Accompanied by 14 allies (A7) 19346 | -5/Archives | Received a hacking code to weaken MAIN.C 19413 | -5/Archives | Discovered new exit (range 16) 19440 | -5/Archives | Discovered new exit (range 15) 19841 | -5/Archives | Entered Hub_04(d) 19841 | -5/Hub_04(d) | Accompanied by 9 allies 19996 | -5/Hub_04(d) | Garrison activated, responded to threat 20313 | -5/Hub_04(d) | Build established: Scavenger-Golem 20523 | -5/Hub_04(d) | Identified exit to Garrison 20532 | -5/Hub_04(d) | Garrison activated, responded to threat 20576 | -5/Hub_04(d) | Network Hub disabled 20577 | -5/Hub_04(d) | Spotted Lightning 20577 | -5/Hub_04(d) | Spotted Lightning 20577 | -5/Hub_04(d) | Spotted Lightning 20604 | -5/Hub_04(d) | Allies destroyed Lightning 20606 | -5/Hub_04(d) | Destroyed Lightning 20612 | -5/Hub_04(d) | Destroyed Lightning 20616 | -5/Hub_04(d) | Lost 3 allies 20695 | -5/Hub_04(d) | Spotted Lightning 20711 | -5/Hub_04(d) | Destroyed 9 combat bots 20827 | -5/Hub_04(d) | Found Prototype Device 20827 | -5/Hub_04(d) | Identified Exp. Phase Shifter 20837 | -5/Hub_04(d) | Found Prototype Processor 20837 | -5/Hub_04(d) | Identified Exp. Targeting Computer 20883 | -5/Hub_04(d) | Spotted Lightning 20884 | -5/Hub_04(d) | Entered Factory 20884 | -4/Factory | Evolved 2 slots: Utility x2 20885 | -4/Factory | Identified exit to Research 21775 | -4/Factory | Discovered exit to Research (range 5) 21953 | -4/Factory | Discovered exit to Research (range 15) 22030 | -4/Factory | Repaired Centrium Medium Armor Plating 22357 | -4/Factory | Identified exit to Upper Caves 22357 | -4/Factory | Identified exit to Armory 22832 | -4/Factory | System corruption reached 10% 22996 | -4/Factory | Destroyed 9 combat bots 23141 | -4/Factory | Entered Upper Caves 23146 | -4/Upper Caves | Encountered a Warlord checkpoint 23708 | -4/Upper Caves | Discovered new exit (range 11) 23772 | -4/Upper Caves | Entered another Upper Caves area 24060 | -4/Upper Caves | Attracted the attention of an 0b10 checkpoint 24109 | -4/Upper Caves | Discovered new exit (range 5) 24138 | -4/Upper Caves | Entered Warlord 24194 | -4/Warlord | System corruption cleaned by Quarantine Array 24198 | -4/Warlord | Discovered new exit (range 29) 24480 | -4/Warlord | Found Prototype Device 24480 | -4/Warlord | Identified Minesniffer Drone Bay 24613 | -4/Warlord | Found Prototype Reactor 24639 | -4/Warlord | Found Prototype Device 24639 | -4/Warlord | Identified Thermal Barrier 24652 | -4/Warlord | Found Prototype Processor 24652 | -4/Warlord | Identified Spectral Analyzer 24665 | -4/Warlord | Found Prototype Hackware 24665 | -4/Warlord | Identified System Mapper 24988 | -4/Warlord | Met Warlord 25013 | -4/Warlord | Warlord's base attacked by MAIN.C 25087 | -4/Warlord | Spotted B-90 Cyclops 25363 | -4/Warlord | Warlord forces counterattacked 25378 | -4/Warlord | Destroyed 12 combat bots 25405 | -4/Warlord | Spotted Striker 25417 | -4/Warlord | Destroyed Striker 25439 | -4/Warlord | Spotted Striker 25459 | -4/Warlord | Spotted Striker 25488 | -4/Warlord | Found Prototype Processor 25488 | -4/Warlord | Identified Exp. Targeting Computer 25507 | -4/Warlord | Lost 13 allies 25517 | -4/Warlord | Spotted Executioner 25522 | -4/Warlord | Spotted Executioner 25548 | -4/Warlord | Entered Proximity Caves 25562 | -3/Proximity Caves | Lost 7 allies 26393 | -3/Proximity Caves | Discovered exit to Research (range 9) 26427 | -3/Proximity Caves | Entered Research 26427 | -3/Research | Evolved 2 slots: Power x1, Propulsion x1 26428 | -3/Research | Identified exit to Research 26428 | -3/Research | Identified exit to Quarantine 26429 | -3/Research | Loaded intel: 90 trap records 26627 | -3/Research | Revision forces began assault on 0b10 26694 | -3/Research | Met up with Revision 17++ 26752 | -3/Research | Found Prototype Processor 26752 | -3/Research | Identified Exp. Melee Analysis Suite 27007 | -3/Research | Found Prototype Launcher 27007 | -3/Research | Identified Mni. Smartbomb Launcher 27020 | -3/Research | Identified Vortex Chain Reactor 27077 | -3/Research | Entered Quarantine 27078 | -3/Quarantine | Maximum security lockdown engaged 27197 | -3/Quarantine | Cryocooling Duct disabled 27212 | -3/Quarantine | Ambient heat levels rising (+20) 27274 | -3/Quarantine | Discovered exit to Research (range 5) 27281 | -3/Quarantine | Entered Research 27281 | -2/Research | Warlord forces began assault on 0b10 27281 | -2/Research | Evolved 2 slots: Propulsion x1, Utility x1 27282 | -2/Research | Identified exit to Testing 27306 | -2/Research | Distinguished unit "Lucky Slug" dispatched to help 27306 | -2/Research | Distinguished unit "Railsplitters" dispatched to help 27375 | -2/Research | Spotted B-90 Cyclops 27391 | -2/Research | Research machine network offline 27617 | -2/Research | Discovered new exit (range 6) 27717 | -2/Research | Borebot progress halted 27865 | -2/Research | Met up with Warlord 28097 | -2/Research | Spotted Striker 28097 | -2/Research | Spotted Executioner 28134 | -2/Research | Destroyed Striker 28152 | -2/Research | Spotted Striker 28155 | -2/Research | Spotted Striker 28177 | -2/Research | Borebot progress halted 28266 | -2/Research | Met DD-05H 28295 | -2/Research | Crushed by falling debris 28299 | -2/Research | Warlord invited to help at Command 28299 | -2/Research | Given Cave Seal Controls access code 28320 | -2/Research | Build established: Scavenger-Mutant 28510 | -2/Research | Found Prototype Device 28510 | -2/Research | Identified Adv. Kinecellerator 28533 | -2/Research | Entered Access 28533 | -1/Access | Evolved 2 slots: Utility x1, Weapon x1 28613 | -1/Access | Unchained authorized (DW-4LL) 28635 | -1/Access | Garrison activated, responded to threat 28719 | -1/Access | Found Prototype Device 28722 | -1/Access | Found Prototype Device 28737 | -1/Access | Garrison activated, responded to threat 28917 | -1/Access | DW-4LL burst out of a wall 28928 | -1/Access | Identified Exp. Shield Generator (x2) 28940 | -1/Access | Destroyed DW-4LL 28951 | -1/Access | Found Prototype Device 28951 | -1/Access | Identified Exp. Weapon Cycler 28955 | -1/Access | Found Prototype Processor 28955 | -1/Access | Identified Exp. Armor Integrity Analyzer 28962 | -1/Access | Found Prototype Treads 28962 | -1/Access | Identified DW-4LL's Griptreads 28970 | -1/Access | Found Prototype Ballistic Gun 28971 | -1/Access | Identified DW-4LL's Megashotty 29255 | -1/Access | Build established: Scavenger-Tank 29283 | -1/Access | First assault squad dispatched 30388 | -1/Access | Destroyed 13 combat bots 31273 | -1/Access | Garrison activated, responded to threat 31280 | -1/Access | High security lockdown imminent 31304 | -1/Access | Identified exit to Garrison 31318 | -1/Access | Destroyed 18 combat bots 31319 | -1/Access | Entered Garrison 31324 | -1/Garrison | Lost 5 parts (1p3u1w) 31551 | -1/Garrison | Spotted Striker 31595 | -1/Garrison | Destroyed Striker 31613 | -1/Garrison | Rewired Executioner 31630 | -1/Garrison | Build established: Scavenger-Golem 31711 | -1/Garrison | Triggered checkpoint 31865 | -1/Garrison | Triggered checkpoint 31930 | -1/Garrison | Spotted B-99 Colossus 31943 | -1/Garrison | Assimilated B-99 Colossus with FLK Orb 31957 | -1/Garrison | Triggered checkpoint 31962 | -1/Garrison | P-80 Master assimilated allied Colossus 10a 32015 | -1/Garrison | Destroyed Colossus 10a 32039 | -1/Garrison | Destroyed 11 combat bots 32047 | -1/Garrison | Lost 3 parts (1p1u1w) 32370 | -1/Garrison | Discovered new exit (range 14) 32403 | -1/Garrison | Phase Generator disabled 32515 | -1/Garrison | Garrison Relay disabled 32643 | -1/Garrison | Discovered new exit (range 8) 32746 | -1/Garrison | Attempted to access garrison exit controls, blocked by remote lockdown 32808 | -1/Garrison | Triggered checkpoint 32843 | -1/Garrison | Lost 3 allies 33013 | -1/Garrison | Attempted to access garrison exit controls, blocked by remote lockdown 33085 | -1/Garrison | Triggered checkpoint 33263 | -1/Garrison | Garrison Relay disabled 33303 | -1/Garrison | Triggered checkpoint 33332 | -1/Garrison | Spotted B-99 Colossus 33332 | -1/Garrison | Spotted B-99 Colossus 33365 | -1/Garrison | Triggered checkpoint 33378 | -1/Garrison | Discovered new exit (range 10) 33526 | -1/Garrison | Entered Access 33562 | -1/Access | High security lockdown imminent 33642 | -1/Access | High security lockdown engaged 33755 | -1/Access | Lost 5 allies 33775 | -1/Access | Spotted Executioner 33775 | -1/Access | Spotted Executioner 33785 | -1/Access | System corruption reached 10% 33785 | -1/Access | Destroyed Executioner 33792 | -1/Access | Destroyed Executioner 33808 | -1/Access | Lost 4 allies 33870 | -1/Access | Destroyed 16 combat bots 33876 | -1/Access | Lost 13 parts (2p1n7u3w) 33994 | -1/Access | Assimilated C-45 Heavy ARC with FLK Orb 34008 | -1/Access | Core integrity fell below 50% 34014 | -1/Access | Scanned by Researcher 34014 | -1/Access | Spotted Striker 34015 | -1/Access | Assimilated Striker with FLK Orb 34018 | -1/Access | Spotted Investigator 34018 | -1/Access | Spotted Executioner 34018 | -1/Access | Assimilated Executioner with FLK Orb 34035 | -1/Access | Spotted Investigator 34041 | -1/Access | Destroyed Investigator 34069 | -1/Access | Self-destructed Last Messages --------------- 34062_ Stasis bubble strength at 3. 34062_ G-73 Enforcer stasis bubble bursts. 34062_ M-36 Artificer repairs U-05 Engineer Welding Torch. 34063_ Stasis bubble bursts. 34063_ Myomer Leg destroyed. 34064_ M-36 Artificer repairs G-73 Enforcer. 34064_ Slug penetrates Wall. 34064_ Held in stasis. 34064_ Investigator is analyzing... 34065_ Wall collapses. 34066_ M-36 Artificer repairs G-73 Enforcer Adv. Heat Sink. 34066_ B-74 Champion suffers critical hit (Burn). 34066_ Rnf. Antimatter Reactor destroyed. 34066_ R-10 Processor collects Prototype Piercing Weapon. 34067_ U-05 Engineer builds a Wall. 34067_ Held in stasis. 34067_ Investigator is analyzing... 34068_ Exp. Weapon Cycler destroyed. 34068_ System corrupted by crushing effect (+2). 34068_ M-36 Artificer repairs S-43 Plague. Map ----- +----------------------------------------------------+ | # #??????????????????????????????? | | # [ #??????????????????????????????? | | #?############??????????????????????????????? | | #???????????????????????????????????????????? | | #????????????????????? ?????????????????? | | #???????????????????# #???????????????? | | #???????????????????# #???????????????? | | #???????????????????# #???????????????? | | #???????????????????# #???????????????? | | #####+#?????????????# #???????????????? | | * |*! ?????? #???????????????? | | #####=#?????????????#% #???????????????? | | #???????????????????# ##??????????????? | | #???#+#####?????????# ##??????????????? | | #??? = ???????## ##??????????????? | | #?? ########% ##??????????????? | | = #? ######## % ##??????????????? | | #? # ##??????????????? | | =% # # %%%" ##??????????????? | | %%% # ???? # u %" ##??????????????? | | % + ???????? # b !*! ##??????????????? | | % # ?????????? # =hm|%!! #???????????????? | | # ????????? # ig!g=*% #???????????????? | | #? ???????? # ==%%u%[ #???????????????? | | = #? ????? # !cgl##############?????????? | | % #?? ?????? # %*%b@# #?????????? | | #??###???##?## %!us# #?????????? | | #??###### #?## gm%R #?????????? | | #### #!! #?## # #?????????? | | #?!%=* * #### # #?????????? | | ####!% ####### # !/ #?????????? | | !=%!%|%*%![%=!% ! # // #?????????? | | %*!!% ! =%=!! %! # / #?????????? | | /% =%% = A|= #= Y?????????? | | =%!!%!!=*! =[ *! # #?????????? | | !%=[= * # #?????????? | | !%*% " ! #?????????? | | %%[ ###########+#??????????? | | #+## # #################??????????????????????? | | ###?????###########??????????????????????? | | #????????????????????????????????????????? | | ! #????????????????????????????????????????? | | #????????????????????????????????????????? | | """" #????????????????????????????????????????? | | """"""""#????????????????????????????????????????? | | """"""""#????????????????????????????????????????? | | !""""" #????????????????????????????????????????? | | =[==/ #????????????????????????????????????????? | | [%[%= +????????????????????????????????????????? | | "=""" #????????????????????????????????????????? | +----------------------------------------------------+ Best States ------------- Heat Dissipation 139 Energy Generation 75 Energy Capacity 1950 Matter Stores 300 Matter Capacity 300 Sight Range 16 Terrain Scan Range 20 Terrain Scan Density 10 Jamming Range 16 Cloak Strength 4 Additional Mass Support 20 Base Temperature (-) 150 Armor Coverage 3200 Resistance: KI 25 Resistance: TH 50 Resistance: EX 15 Resistance: EM 90 Resistance: I 15 Resistance: S 15 Resistance: P 15 Utility Shielding 66 Weapon Shielding 100 Weapon Cycling 30 Phase Shifting 15 Evasion (%) 63 Targeting Accuracy 8 Core Analysis 8 Recoil Reduction 4 Offensive Hacking 10 Defensive Hacking 10 Item Schematics ----------------- Huge Storage Unit | -10/Materials | Hacked Lrg. Storage Unit | -8/Materials | Scanalyzed Imp. Cryofiber Web | -6/Factory | Scanalyzed Hcp. Storage Unit | -6/Factory | Scanalyzed Weapon Mount | -6/Factory | Hacked Beamcaster | -6/Zion | Free Barrage Gun | -6/Zion | Free Slug Cannon | -6/Zion | Free Enh. Flamer | -6/Zion | Free Tactical Coordination Suite | -6/Zion | Free Imp. Hacking Suite | -6/Zion | Archive Imp. Kinecellerator | -6/Zion | Archive Adv. Terrain Scanner | -6/Zion | Archive Neutrino Core | -6/Zion | Archive Phase Cannon | -6/Zion | Archive Wave Gun | -6/Zion | Archive Flexi-carbon Leg | -6/Zion | Archive Antimatter Reactor | -6/Zion | Archive HERF Cannon | -6/Zion | Archive Drone Bay | -6/Zion | Archive Imp. Arc Projector | -6/Zion | Archive Imp. Component Analysis Suite | -6/Zion | Archive Enh. Optical Array | -6/Zion | Archive Proton Cannon | -6/Zion | Archive Disruptor Cannon | -6/Zion | Archive Robot Schematics ------------------ L-41 Fighter | -6/Zion | Archive B-48 Gladiator | -6/Zion | Archive K-01 Serf | -6/Zion | Archive X-77 Beamer | -6/Zion | Archive Fabricated ------------ Nothing Repaired ---------- Centrium Medium Armor Plating | 23% | -4/Factory Studied --------- Lgt. Treads | -8/Materials | Hacked Arm. Huge Wheel | -6/Factory | Hacked Alien Tech Used ----------------- None Achievements -------------- Betrayal Most Foul Bigger And Badder Bullet Installation Doshington For Science! Hornet's Nest Hot Goods King Drone Like A Rock Welcome To The Revolution Well-fed Force Field Challenges ------------ None Game ------ Seed MachineCoolantDeflector Manual? 0 Play Time 05:50:09 Cumulative 576.2 hours Start 2025.10.19 @ 20:47:20 End 2025.10.21 @ 15:30:09 Sessions 21 Manual Loads 0 Difficulty Rogue Special Mode None Game No. 219 Rogue 219 Adventurer 0 Explorer 0 Win Type - Total 23 Types 13/1/5/2/0/1/0/1/0/0 Lore% 91 Gallery% 84 Achievement% 63 Wizard Run 0 Options --------- Layout 0 ASCII 0 Keyboard 0 Movement Numpad Keybinds 0 Fullscreen 2 Font 18/SmallcapsGlow Map View 76x50 Zoom Use 0% Tactical HUD 1 Map Filters NONE Filters NONE Steam X RUN: 9f3547f2-b652-4086-b377-2ddcdbca976e